{"text_format":"1","workbook":"xlsx","n_sheets":2,"sheets":["Sheet1","Chart1"],"not_rendered":{"charts":3,"images":0,"macros":1,"external_links":0,"defined_names":38,"comments":0,"pivot_tables":0},"unopened":[{"sheet":"Chart1","index":1,"reason":"not_a_worksheet"}],"bounds":{"document_bytes":16777216,"sheet_cells":100000,"rows_first":2000,"rows_last":500,"rows_between":2000,"halvings":0,"cell_chars":16384,"cell_head_chars":4096},"cells_cut":0,"cells_raw":0,"read":"whole","date_system":"1900"}

{"sheet":"Sheet1","index":0,"n_rows":129,"n_cols":61,"rows_kept":129,"cut":false,"hidden":false,"merged":[]}
["Name","Value",{"$f":"\"log time UTC \"&TEXT(time_zone,\"+0;-0;+0\")&\"h\"","v":"log time UTC +1h"},"Lev","log text",null,"T","CLD","PDD","Time","Revenue","Cost","Account","Duration",null,null,null,null,null,null,"count","answered","spoken","PDD","Revenue","Cost","Duration","Deepest Prefix","Deepest Cost","Deepest Log","Factor",null,null,null,null,null,null,null,"prefix","time",{"$f":"IF(calc1,\"cost/h [\"&TEXT(SUM(Z:Z),\"0\")&\"]\")","v":false},"suspected cost/h",{"$f":"IF(calc1,\"margin/h [\"&TEXT(SUM(Y:Y)-SUM(Z:Z),\"0\")&\"]\")","v":false},{"$f":"IF(suspect_new=\"\",\"\",IFERROR(\"new \"&LEFT(suspect_new,SEARCH(\" \",suspect_new)-1),\"\"))","v":""},{"$f":"IF(calc1,\"PDD x\"&$B$49&\" [\"&TEXT(SUMIF(INDEX(cdr,,1),\"=1\",INDEX(cdr,,3))/COUNTIF(INDEX(cdr,,1),\"=1\")/1000,\"0.0\")&\"s]\")","v":false},{"$f":"IF(calc1,\"spoken/m x\"&$B$50&\" [\"&SUM(W:W)&\"]\")","v":false},{"$f":"IF(calc1,\"failed/m x\"&$B$50&\" [\"&(SUM(U:U)-SUM(W:W))&\"]\")","v":false},{"$f":"IF(calc1,\"minutes/h [\"&TEXT(SUM(AA:AA)/60,\"0\")&\"m]\")","v":false},{"$f":"IF(calc1,\"UTC \"&TEXT(time_zone,\"+0;-0;+0\")&\"h [\"&INT($B$37)&\"d\"&TEXT($B$37-INT($B$37),\"[h]\\hm\\ms\\s\")&\"]\")","v":false},null,"prefix","time","cost/h [16755]","suspected cost/h","margin/h [8764]",null,"PDD x50 [16.6s]","spoken/m x100 [106815]","failed/m x100 [131710]","minues/h [816043m]","UTC +1h [40d0h0m12s]"]
["driver","{MySQL ODBC 5.2 Unicode Driver}","2013-10-31T16:06:28",1,"bottom rows cleared",null,null,null,null,null,null,null,null,null,null,{"$f":"0","v":0},{"$f":"B35","v":false},{"$f":"B42","v":false},{"$f":"IF(calc1,\">=\"&Q2)","v":false},{"$f":"IF(calc1,IF(P2=MAX(P:P),\">0\",\"<\"&(Q2+R2)))","v":false},{"$f":"IF(calc1,COUNTIFS(INDEX(cdr,,4),$S2,INDEX(cdr,,4),$T2))","v":false},{"$f":"IF(calc1,COUNTIFS(INDEX(cdr,,1),\"=1\",INDEX(cdr,,4),$S2,INDEX(cdr,,4),$T2))","v":false},{"$f":"IF(calc1,COUNTIFS(INDEX(cdr,,1),\"=1\",INDEX(cdr,,4),$S2,INDEX(cdr,,4),$T2,INDEX(cdr,,8),\">=\"&$B$43))","v":false},{"$f":"IF(calc1,SUMIFS(INDEX(cdr,,3),INDEX(cdr,,1),\"=1\",INDEX(cdr,,4),$S2,INDEX(cdr,,4),$T2))","v":false},{"$f":"IF(calc1,SUMIFS(INDEX(cdr,,5),INDEX(cdr,,1),\"=1\",INDEX(cdr,,4),$S2,INDEX(cdr,,4),$T2))","v":false},{"$f":"IF(calc1,SUMIFS(INDEX(cdr,,6),INDEX(cdr,,1),\"=1\",INDEX(cdr,,4),$S2,INDEX(cdr,,4),$T2))","v":false},{"$f":"IF(calc1,SUMIFS(INDEX(cdr,,8),INDEX(cdr,,1),\"=1\",INDEX(cdr,,4),$S2,INDEX(cdr,,4),$T2))","v":false},{"$f":"IF(AND(calc1,calc2),IF($Z2>$B$44*($R2*24),deepest(INDEX(cdr,,6),INDEX(cdr,,1),\"=1\",INDEX(cdr,,2),\"\",$Z2,$B$45*$Z2,INDEX(cdr,,4),$S2,$T2),\"\"))","v":false},false,false,{"$f":"IF(AND(calc1,calc2),IF(LEN($AB2)>=$B$46,ROUND(AC2/(R2*24),4)/ROUND(SUMIF(INDEX(cdr,,2),\"=\"&AB2&\"*\",INDEX(cdr,,6))/($B$37*24),4)))","v":false},null,{"$f":"IF(calc1,$Q2+$R2/2+time_zone/24)","v":false},{"$f":"IF(calc1,IF(ISNUMBER(AW2),INT(AG2),\"\"))","v":false},{"$f":"IF(calc1,IF(ISNUMBER(AW2),IF(COUNT(AW$1:AW2)=1,1,IF(COUNT(AW$1:AW2)<COUNT(AW:AW),IF(AH2=MAX(AH$1:AH1),2,3),4))))","v":false},{"$f":"IF(calc1,\"Δ\"&IF($R2>1,TEXT($R2,\"0\\d\"),IF($R2>1/24,TEXT($R2*24,\"0\\h\"),IF($R2>1/(24*60),TEXT($R2*24*60,\"0\\m\"),TEXT($R2*24*60*60,\"0\\s\")))))","v":false},{"$f":"IF(calc1,LEN(AJ2))","v":false},{"$f":"IF(calc1,REPT(\" \",3*(MAX(AK:AK)-AK2+1))&AJ2)","v":false},{"$f":"IF(calc1,IF(AND(calc2,AP2),\"+\"&$AB2&\"   \"&ROUND(AP2,0)&\" €/h = \"&TEXT(AC2/Z2,\"0%\"),\"\"))","v":false},{"$f":"IF(calc1,IF(AI2,CHOOSE(AI2,\"↑  \"&TEXT($B$35+time_zone/24,\"yyyy mmm d dddd hh:mm\")&AL2,TEXT(AG2,\"hh:mm\")&AL2,\"→  \"&TEXT(AG2,\"mmm d dddd hh:mm\")&AL2,\"↓  \"&TEXT($B$36+time_zone/24,\"yyyy mmm d dddd hh:mm\")&AL2),\"\"))","v":false},{"$f":"IF(calc1,($Z2-IF(calc2,IF($AE2,IF($AE2>$B$47,$AC2,0),0),0))/(24*$R2))","v":false},{"$f":"IF(calc1,IF(calc2,IF($AE2,IF($AE2>$B$47,$AC2,0),0),0)/(24*$R2))","v":false},{"$f":"IF(calc1,($Y2-$Z2)/(24*$R2))","v":false},{"$f":"IF(calc1,IF(AP2,MAX(OFFSET(AO2,-1,0,3,1))+MAX(OFFSET(AP2,-1,0,3,1))+MAX(OFFSET(AQ2,-1,0,3,1),0),NA()))","v":false},{"$f":"IF(calc1,IF(V2,X2/V2/1000*$B$49,NA()))","v":false},{"$f":"IF(calc1,$W2/($R2*24*60)*$B$50)","v":false},{"$f":"IF(calc1,($U2-$W2)/($R2*24*60)*$B$50)","v":false},{"$f":"IF(calc1,$AA2/($R2*24)/60)","v":false},{"$f":"IF(calc1,IF(MOD(ROW()-1,$B$54),0,NA()))","v":false},null,null,"↑  2013 Sep 21 Saturday 15:54      Δ1d",49.444520452864076,0,26.440544399502382,{"$error":"#N/A"},875.62454269886075,389.29388456893008,519.86740279284118,2338.045777312198,0]
["server","radius.billing.company.com","2013-10-31T16:06:09",1,"right columns cleared",null,null,null,null,null,null,null,null,null,null,{"$f":"IF(calc1,P2+1)","v":false},{"$f":"IF(calc1,Q2+R2)","v":false},{"$f":"IF(calc1,R2/$B$40)","v":false},{"$f":"IF(calc1,\">=\"&Q3)","v":false},false,false,false,false,false,false,false,false,{"$f":"IF(AND(calc1,calc2),IF($Z3>$B$44*($R3*24),deepest(INDEX(cdr,,6),INDEX(cdr,,1),\"=1\",INDEX(cdr,,2),\"\",$Z3,$B$45*$Z3,INDEX(cdr,,4),$S3,$T3),\"\"))","v":false},false,false,false,null,false,{"$f":"IF(calc1,IF(ISNUMBER(AW3),INT(AG3),\"\"))","v":false},{"$f":"IF(calc1,IF(ISNUMBER(AW3),IF(COUNT(AW$1:AW3)=1,1,IF(COUNT(AW$1:AW3)<COUNT(AW:AW),IF(AH3=MAX(AH$1:AH2),2,3),4))))","v":false},false,{"$f":"IF(calc1,LEN(AJ3))","v":false},false,{"$f":"IF(calc1,IF(AND(calc2,AP3),\"+\"&$AB3&\"   \"&ROUND(AP3,0)&\" €/h = \"&TEXT(AC3/Z3,\"0%\"),\"\"))","v":false},false,false,false,false,{"$f":"IF(calc1,IF(AP3,MAX(OFFSET(AO3,-1,0,3,1))+MAX(OFFSET(AP3,-1,0,3,1))+MAX(OFFSET(AQ3,-1,0,3,1),0),NA()))","v":false},false,false,false,false,false,null,null,null,56.220834000911879,0,24.832027773107569,{"$error":"#N/A"},812.18727892468974,656.20524184744477,786.92303145940627,2722.5971957211373,{"$error":"#N/A"}]
["database","porta-billing","2013-10-31T16:06:09",1,"clearing blank cells",null,null,null,null,null,null,null,null,null,null,false,{"$f":"IF(calc1,Q3+R3)","v":false},false,false,false,false,false,false,false,false,false,false,{"$f":"IF(AND(calc1,calc2),IF($Z4>$B$44*($R4*24),deepest(INDEX(cdr,,6),INDEX(cdr,,1),\"=1\",INDEX(cdr,,2),\"\",$Z4,$B$45*$Z4,INDEX(cdr,,4),$S4,$T4),\"\"))","v":false},false,false,false,null,false,false,{"$f":"IF(calc1,IF(ISNUMBER(AW4),IF(COUNT(AW$1:AW4)=1,1,IF(COUNT(AW$1:AW4)<COUNT(AW:AW),IF(AH4=MAX(AH$1:AH3),2,3),4))))","v":false},false,false,false,false,false,false,false,false,false,false,false,false,false,false,null,null,"→  Sep 25 Wednesday 06:35      Δ1d",65.757408035598459,0,32.544212642119803,{"$error":"#N/A"},844.03342030065858,693.6531623907423,877.35304267000197,3208.4250475619888,0]
["user","emin","2013-10-31T16:05:51",1,"bottom rows cleared",null,null,null,null,null,null,null,null,null,null,false,false,false,false,false,false,false,false,false,false,false,false,{"$f":"IF(AND(calc1,calc2),IF($Z5>$B$44*($R5*24),deepest(INDEX(cdr,,6),INDEX(cdr,,1),\"=1\",INDEX(cdr,,2),\"\",$Z5,$B$45*$Z5,INDEX(cdr,,4),$S5,$T5),\"\"))","v":false},false,false,false,null,false,false,{"$f":"IF(calc1,IF(ISNUMBER(AW5),IF(COUNT(AW$1:AW5)=1,1,IF(COUNT(AW$1:AW5)<COUNT(AW:AW),IF(AH5=MAX(AH$1:AH4),2,3),4))))","v":false},false,false,false,false,false,false,false,false,false,false,false,false,false,false,null,null,null,42.284218048350702,0,22.052633214103569,{"$error":"#N/A"},816.79634966378478,475.17887355991428,544.06127099100866,2129.0196465137396,{"$error":"#N/A"}]
["password","****","2013-10-31T16:05:37",1,"right columns cleared",null,null,null,null,null,null,null,null,null,null,false,false,false,false,false,false,false,false,false,false,false,false,{"$f":"IF(AND(calc1,calc2),IF($Z6>$B$44*($R6*24),deepest(INDEX(cdr,,6),INDEX(cdr,,1),\"=1\",INDEX(cdr,,2),\"\",$Z6,$B$45*$Z6,INDEX(cdr,,4),$S6,$T6),\"\"))","v":false},false,false,false,null,false,false,{"$f":"IF(calc1,IF(ISNUMBER(AW6),IF(COUNT(AW$1:AW6)=1,1,IF(COUNT(AW$1:AW6)<COUNT(AW:AW),IF(AH6=MAX(AH$1:AH5),2,3),4))))","v":false},false,false,false,false,false,false,false,false,false,false,false,false,false,false,null,null,"→  Sep 27 Friday 22:26      Δ1d",55.032998850707557,0,27.576973134096377,{"$error":"#N/A"},825.87715744267086,580.95298603540846,711.83684121874728,2527.9907582276423,0]
["mysql_connect",{"$f":"A2&\"=\"&B2&\"; \"&A3&\"=\"&B3&\"; \"&A4&\"=\"&B4&\"; \"&A5&\"=\"&B5&\"; \"&A6&\"=\"&B6&\"; option=3\"","v":"driver={MySQL ODBC 5.2 Unicode Driver}; server=radius.billing.company.com; database=porta-billing; user=emin; password=****; option=3"},"2013-10-31T16:05:37",1,"clearing blank cells",null,null,null,null,null,null,null,null,null,null,false,false,false,false,false,false,false,false,false,false,false,false,{"$f":"IF(AND(calc1,calc2),IF($Z7>$B$44*($R7*24),deepest(INDEX(cdr,,6),INDEX(cdr,,1),\"=1\",INDEX(cdr,,2),\"\",$Z7,$B$45*$Z7,INDEX(cdr,,4),$S7,$T7),\"\"))","v":false},false,false,false,null,false,false,{"$f":"IF(calc1,IF(ISNUMBER(AW7),IF(COUNT(AW$1:AW7)=1,1,IF(COUNT(AW$1:AW7)<COUNT(AW:AW),IF(AH7=MAX(AH$1:AH6),2,3),4))))","v":false},false,false,false,false,false,false,false,false,false,false,false,false,false,false,null,null,null,49.887475973910803,0,30.550763067796233,{"$error":"#N/A"},873.00282977797133,448.91576672701819,576.69492540668352,2485.8911820610956,{"$error":"#N/A"}]
["mysql_count",{"$f":"\"select sum(N) from \"&\"(select count(1) as N from CDR_Vendors where disconnect_time [between] union all select count(2) from CDR_Vendors_Failed where connect_time [between]) as T\"","v":"select sum(N) from (select count(1) as N from CDR_Vendors where disconnect_time [between] union all select count(2) from CDR_Vendors_Failed where connect_time [between]) as T"},"2013-10-31T16:05:14",1,"bottom rows cleared",null,null,null,null,null,null,null,null,null,null,false,false,false,false,false,false,false,false,false,false,false,false,{"$f":"IF(AND(calc1,calc2),IF($Z8>$B$44*($R8*24),deepest(INDEX(cdr,,6),INDEX(cdr,,1),\"=1\",INDEX(cdr,,2),\"\",$Z8,$B$45*$Z8,INDEX(cdr,,4),$S8,$T8),\"\"))","v":false},false,false,false,null,false,false,{"$f":"IF(calc1,IF(ISNUMBER(AW8),IF(COUNT(AW$1:AW8)=1,1,IF(COUNT(AW$1:AW8)<COUNT(AW:AW),IF(AH8=MAX(AH$1:AH7),2,3),4))))","v":false},false,false,false,false,false,false,false,false,false,false,false,false,false,false,null,null,"→  Sep 30 Monday 09:41      Δ1d",57.125565413988113,0,29.760153521088188,{"$error":"#N/A"},819.02543343771481,665.58743441079991,777.91152335079096,3083.113904692299,0]
["mysql_cdr",{"$f":"\"(select 1 as T, CLD, setup_time, disconnect_time as time, revenue, charged_amount, account_id, charged_quantity from CDR_Vendors where disconnect_time [between])\" & \" union all \" & \"(select 2, CLD, setup_time, connect_time, null, null, account_id, null from CDR_Vendors_Failed where connect_time [between])\" & \" order by time\"","v":"(select 1 as T, CLD, setup_time, disconnect_time as time, revenue, charged_amount, account_id, charged_quantity from CDR_Vendors where disconnect_time [between]) union all (select 2, CLD, setup_time, connect_time, null, null, account_id, null from CDR_Vendors_Failed where connect_time [between]) order by time"},"2013-10-31T16:05:00",1,"right columns cleared",null,null,null,null,null,null,null,null,null,null,false,false,false,false,false,false,false,false,false,false,false,false,{"$f":"IF(AND(calc1,calc2),IF($Z9>$B$44*($R9*24),deepest(INDEX(cdr,,6),INDEX(cdr,,1),\"=1\",INDEX(cdr,,2),\"\",$Z9,$B$45*$Z9,INDEX(cdr,,4),$S9,$T9),\"\"))","v":false},false,false,false,null,false,false,{"$f":"IF(calc1,IF(ISNUMBER(AW9),IF(COUNT(AW$1:AW9)=1,1,IF(COUNT(AW$1:AW9)<COUNT(AW:AW),IF(AH9=MAX(AH$1:AH8),2,3),4))))","v":false},false,false,false,false,false,false,false,false,false,false,false,false,false,false,null,null,null,27.087116915680696,0,14.733122253666917,{"$error":"#N/A"},792.89356277883996,332.73793862715951,389.28639938582342,1119.1862633714186,{"$error":"#N/A"}]
["time_zone",1,"2013-10-31T16:04:59",1,"clearing blank cells",null,null,null,null,null,null,null,null,null,null,false,false,false,false,false,false,false,false,false,false,false,false,{"$f":"IF(AND(calc1,calc2),IF($Z10>$B$44*($R10*24),deepest(INDEX(cdr,,6),INDEX(cdr,,1),\"=1\",INDEX(cdr,,2),\"\",$Z10,$B$45*$Z10,INDEX(cdr,,4),$S10,$T10),\"\"))","v":false},false,false,false,null,false,false,{"$f":"IF(calc1,IF(ISNUMBER(AW10),IF(COUNT(AW$1:AW10)=1,1,IF(COUNT(AW$1:AW10)<COUNT(AW:AW),IF(AH10=MAX(AH$1:AH9),2,3),4))))","v":false},false,false,false,false,false,false,false,false,false,false,false,false,false,false,null,null,"→  Oct 2 Wednesday 16:38      Δ1d",0,0,0,{"$error":"#N/A"},{"$error":"#N/A"},0,0,0,0]
[null,null,"2013-10-31T16:04:34",1,"protect worksheet",null,null,null,null,null,null,null,null,null,null,false,false,false,false,false,false,false,false,false,false,false,false,{"$f":"IF(AND(calc1,calc2),IF($Z11>$B$44*($R11*24),deepest(INDEX(cdr,,6),INDEX(cdr,,1),\"=1\",INDEX(cdr,,2),\"\",$Z11,$B$45*$Z11,INDEX(cdr,,4),$S11,$T11),\"\"))","v":false},false,false,false,null,false,false,{"$f":"IF(calc1,IF(ISNUMBER(AW11),IF(COUNT(AW$1:AW11)=1,1,IF(COUNT(AW$1:AW11)<COUNT(AW:AW),IF(AH11=MAX(AH$1:AH10),2,3),4))))","v":false},false,false,false,false,false,false,false,false,false,false,false,false,false,false,null,null,null,0,0,0,{"$error":"#N/A"},{"$error":"#N/A"},0,0,0,{"$error":"#N/A"}]
["timing","fast","2013-10-31T16:04:34",1,"schedule stopped",null,null,null,null,null,null,null,null,null,null,false,false,false,false,false,false,false,false,false,false,false,false,{"$f":"IF(AND(calc1,calc2),IF($Z12>$B$44*($R12*24),deepest(INDEX(cdr,,6),INDEX(cdr,,1),\"=1\",INDEX(cdr,,2),\"\",$Z12,$B$45*$Z12,INDEX(cdr,,4),$S12,$T12),\"\"))","v":false},false,false,false,null,false,false,{"$f":"IF(calc1,IF(ISNUMBER(AW12),IF(COUNT(AW$1:AW12)=1,1,IF(COUNT(AW$1:AW12)<COUNT(AW:AW),IF(AH12=MAX(AH$1:AH11),2,3),4))))","v":false},false,false,false,false,false,false,false,false,false,false,false,false,false,false,null,null,"→  Oct 4 Friday 19:37      Δ1d",0,0,0,{"$error":"#N/A"},{"$error":"#N/A"},0,0,0,0]
["oldest",1,"2013-10-31T16:04:34",1,"worksheet unprotected",null,null,null,null,null,null,null,null,null,null,false,false,false,false,false,false,false,false,false,false,false,false,{"$f":"IF(AND(calc1,calc2),IF($Z13>$B$44*($R13*24),deepest(INDEX(cdr,,6),INDEX(cdr,,1),\"=1\",INDEX(cdr,,2),\"\",$Z13,$B$45*$Z13,INDEX(cdr,,4),$S13,$T13),\"\"))","v":false},false,false,false,null,false,false,{"$f":"IF(calc1,IF(ISNUMBER(AW13),IF(COUNT(AW$1:AW13)=1,1,IF(COUNT(AW$1:AW13)<COUNT(AW:AW),IF(AH13=MAX(AH$1:AH12),2,3),4))))","v":false},false,false,false,false,false,false,false,false,false,false,false,false,false,false,null,null,null,0,0,0,{"$error":"#N/A"},{"$error":"#N/A"},0,0,0,{"$error":"#N/A"}]
["min",3.472222222222222E-3,"2013-10-31T16:02:20",1,"protect worksheet",null,null,null,null,null,null,null,null,null,null,false,false,false,false,false,false,false,false,false,false,false,false,{"$f":"IF(AND(calc1,calc2),IF($Z14>$B$44*($R14*24),deepest(INDEX(cdr,,6),INDEX(cdr,,1),\"=1\",INDEX(cdr,,2),\"\",$Z14,$B$45*$Z14,INDEX(cdr,,4),$S14,$T14),\"\"))","v":false},false,false,false,null,false,false,{"$f":"IF(calc1,IF(ISNUMBER(AW14),IF(COUNT(AW$1:AW14)=1,1,IF(COUNT(AW$1:AW14)<COUNT(AW:AW),IF(AH14=MAX(AH$1:AH13),2,3),4))))","v":false},false,false,false,false,false,false,false,false,false,false,false,false,false,false,null,null,"→  Oct 6 Sunday 18:55   Δ23h",0,0,0,{"$error":"#N/A"},{"$error":"#N/A"},0,0,0,0]
["max",1,"2013-10-31T16:02:19",1,"protect worksheet",null,null,null,null,null,null,null,null,null,null,false,false,false,false,false,false,false,false,false,false,false,false,{"$f":"IF(AND(calc1,calc2),IF($Z15>$B$44*($R15*24),deepest(INDEX(cdr,,6),INDEX(cdr,,1),\"=1\",INDEX(cdr,,2),\"\",$Z15,$B$45*$Z15,INDEX(cdr,,4),$S15,$T15),\"\"))","v":false},false,false,false,null,false,false,{"$f":"IF(calc1,IF(ISNUMBER(AW15),IF(COUNT(AW$1:AW15)=1,1,IF(COUNT(AW$1:AW15)<COUNT(AW:AW),IF(AH15=MAX(AH$1:AH14),2,3),4))))","v":false},false,false,false,false,false,false,false,false,false,false,false,false,false,false,null,null,null,0,0,0,{"$error":"#N/A"},{"$error":"#N/A"},0,0,0,{"$error":"#N/A"}]
["margin",3.472222222222222E-3,"2013-10-31T16:02:19",1,"next call on 2013-10-31 16:13:19",null,null,null,null,null,null,null,null,null,null,false,false,false,false,false,false,false,false,false,false,false,false,{"$f":"IF(AND(calc1,calc2),IF($Z16>$B$44*($R16*24),deepest(INDEX(cdr,,6),INDEX(cdr,,1),\"=1\",INDEX(cdr,,2),\"\",$Z16,$B$45*$Z16,INDEX(cdr,,4),$S16,$T16),\"\"))","v":false},false,false,false,null,false,false,{"$f":"IF(calc1,IF(ISNUMBER(AW16),IF(COUNT(AW$1:AW16)=1,1,IF(COUNT(AW$1:AW16)<COUNT(AW:AW),IF(AH16=MAX(AH$1:AH15),2,3),4))))","v":false},false,false,false,false,false,false,false,false,false,false,false,false,false,false,null,null,"→  Oct 8 Tuesday 14:49   Δ21h",0,0,0,{"$error":"#N/A"},{"$error":"#N/A"},0,0,0,0]
["UTC last",null,"2013-10-31T16:02:19",1,"job ended",null,null,null,null,null,null,null,null,null,null,false,false,false,false,false,false,false,false,false,false,false,false,{"$f":"IF(AND(calc1,calc2),IF($Z17>$B$44*($R17*24),deepest(INDEX(cdr,,6),INDEX(cdr,,1),\"=1\",INDEX(cdr,,2),\"\",$Z17,$B$45*$Z17,INDEX(cdr,,4),$S17,$T17),\"\"))","v":false},false,false,false,null,false,false,{"$f":"IF(calc1,IF(ISNUMBER(AW17),IF(COUNT(AW$1:AW17)=1,1,IF(COUNT(AW$1:AW17)<COUNT(AW:AW),IF(AH17=MAX(AH$1:AH16),2,3),4))))","v":false},false,false,false,false,false,false,false,false,false,false,false,false,false,false,null,null,null,0,0,0,{"$error":"#N/A"},{"$error":"#N/A"},0,0,0,{"$error":"#N/A"}]
[null,null,"2013-10-31T16:02:15",1,"saving...",null,null,null,null,null,null,null,null,null,null,false,false,false,false,false,false,false,false,false,false,false,false,{"$f":"IF(AND(calc1,calc2),IF($Z18>$B$44*($R18*24),deepest(INDEX(cdr,,6),INDEX(cdr,,1),\"=1\",INDEX(cdr,,2),\"\",$Z18,$B$45*$Z18,INDEX(cdr,,4),$S18,$T18),\"\"))","v":false},false,false,false,null,false,false,{"$f":"IF(calc1,IF(ISNUMBER(AW18),IF(COUNT(AW$1:AW18)=1,1,IF(COUNT(AW$1:AW18)<COUNT(AW:AW),IF(AH18=MAX(AH$1:AH17),2,3),4))))","v":false},false,false,false,false,false,false,false,false,false,false,false,false,false,false,null,null,"→  Oct 10 Thursday 07:31   Δ20h",0,0,0,{"$error":"#N/A"},{"$error":"#N/A"},0,0,0,0]
["timing","medium","2013-10-31T16:02:15",1,"bottom rows cleared",null,null,null,null,null,null,null,null,null,null,false,false,false,false,false,false,false,false,false,false,false,false,{"$f":"IF(AND(calc1,calc2),IF($Z19>$B$44*($R19*24),deepest(INDEX(cdr,,6),INDEX(cdr,,1),\"=1\",INDEX(cdr,,2),\"\",$Z19,$B$45*$Z19,INDEX(cdr,,4),$S19,$T19),\"\"))","v":false},false,false,false,null,false,false,{"$f":"IF(calc1,IF(ISNUMBER(AW19),IF(COUNT(AW$1:AW19)=1,1,IF(COUNT(AW$1:AW19)<COUNT(AW:AW),IF(AH19=MAX(AH$1:AH18),2,3),4))))","v":false},false,false,false,false,false,false,false,false,false,false,false,false,false,false,null,null,null,0,0,0,{"$error":"#N/A"},{"$error":"#N/A"},0,0,0,{"$error":"#N/A"}]
["oldest",10,"2013-10-31T16:01:57",1,"right columns cleared",null,null,null,null,null,null,null,null,null,null,false,false,false,false,false,false,false,false,false,false,false,false,{"$f":"IF(AND(calc1,calc2),IF($Z20>$B$44*($R20*24),deepest(INDEX(cdr,,6),INDEX(cdr,,1),\"=1\",INDEX(cdr,,2),\"\",$Z20,$B$45*$Z20,INDEX(cdr,,4),$S20,$T20),\"\"))","v":false},false,false,false,null,false,false,{"$f":"IF(calc1,IF(ISNUMBER(AW20),IF(COUNT(AW$1:AW20)=1,1,IF(COUNT(AW$1:AW20)<COUNT(AW:AW),IF(AH20=MAX(AH$1:AH19),2,3),4))))","v":false},false,false,false,false,false,false,false,false,false,false,false,false,false,false,null,null,"→  Oct 11 Friday 21:18   Δ18h",0,0,0,{"$error":"#N/A"},{"$error":"#N/A"},0,0,0,0]
["min",4.1666666666666664E-2,"2013-10-31T16:01:57",1,"clearing blank cells",null,null,null,null,null,null,null,null,null,null,false,false,false,false,false,false,false,false,false,false,false,false,{"$f":"IF(AND(calc1,calc2),IF($Z21>$B$44*($R21*24),deepest(INDEX(cdr,,6),INDEX(cdr,,1),\"=1\",INDEX(cdr,,2),\"\",$Z21,$B$45*$Z21,INDEX(cdr,,4),$S21,$T21),\"\"))","v":false},false,false,false,null,false,false,{"$f":"IF(calc1,IF(ISNUMBER(AW21),IF(COUNT(AW$1:AW21)=1,1,IF(COUNT(AW$1:AW21)<COUNT(AW:AW),IF(AH21=MAX(AH$1:AH20),2,3),4))))","v":false},false,false,false,false,false,false,false,false,false,false,false,false,false,false,null,null,null,0,0,0,{"$error":"#N/A"},{"$error":"#N/A"},0,0,0,{"$error":"#N/A"}]
["max",1,null,null,null,null,null,null,null,null,null,null,null,null,null,false,false,false,false,false,false,false,false,false,false,false,false,{"$f":"IF(AND(calc1,calc2),IF($Z22>$B$44*($R22*24),deepest(INDEX(cdr,,6),INDEX(cdr,,1),\"=1\",INDEX(cdr,,2),\"\",$Z22,$B$45*$Z22,INDEX(cdr,,4),$S22,$T22),\"\"))","v":false},false,false,false,null,false,false,{"$f":"IF(calc1,IF(ISNUMBER(AW22),IF(COUNT(AW$1:AW22)=1,1,IF(COUNT(AW$1:AW22)<COUNT(AW:AW),IF(AH22=MAX(AH$1:AH21),2,3),4))))","v":false},false,false,false,false,false,false,false,false,false,false,false,false,false,false,null,null,"→  Oct 13 Sunday 08:20   Δ17h",0,0,0,{"$error":"#N/A"},{"$error":"#N/A"},0,0,0,0]
["margin",4.1666666666666664E-2,null,null,null,null,null,null,null,null,null,null,null,null,null,false,false,false,false,false,false,false,false,false,false,false,false,{"$f":"IF(AND(calc1,calc2),IF($Z23>$B$44*($R23*24),deepest(INDEX(cdr,,6),INDEX(cdr,,1),\"=1\",INDEX(cdr,,2),\"\",$Z23,$B$45*$Z23,INDEX(cdr,,4),$S23,$T23),\"\"))","v":false},false,false,false,null,false,false,{"$f":"IF(calc1,IF(ISNUMBER(AW23),IF(COUNT(AW$1:AW23)=1,1,IF(COUNT(AW$1:AW23)<COUNT(AW:AW),IF(AH23=MAX(AH$1:AH22),2,3),4))))","v":false},false,false,false,false,false,false,false,false,false,false,false,false,false,false,null,null,null,0,0,0,{"$error":"#N/A"},{"$error":"#N/A"},0,0,0,{"$error":"#N/A"}]
["UTC last",null,null,null,null,null,null,null,null,null,null,null,null,null,null,false,false,false,false,false,false,false,false,false,false,false,false,{"$f":"IF(AND(calc1,calc2),IF($Z24>$B$44*($R24*24),deepest(INDEX(cdr,,6),INDEX(cdr,,1),\"=1\",INDEX(cdr,,2),\"\",$Z24,$B$45*$Z24,INDEX(cdr,,4),$S24,$T24),\"\"))","v":false},false,false,false,null,false,false,{"$f":"IF(calc1,IF(ISNUMBER(AW24),IF(COUNT(AW$1:AW24)=1,1,IF(COUNT(AW$1:AW24)<COUNT(AW:AW),IF(AH24=MAX(AH$1:AH23),2,3),4))))","v":false},false,false,false,false,false,false,false,false,false,false,false,false,false,false,null,null,"→  Oct 14 Monday 16:51   Δ16h",0,0,0,{"$error":"#N/A"},{"$error":"#N/A"},0,0,0,0]
[null,null,null,null,null,null,null,null,null,null,null,null,null,null,null,false,false,false,false,false,false,false,false,false,false,false,false,{"$f":"IF(AND(calc1,calc2),IF($Z25>$B$44*($R25*24),deepest(INDEX(cdr,,6),INDEX(cdr,,1),\"=1\",INDEX(cdr,,2),\"\",$Z25,$B$45*$Z25,INDEX(cdr,,4),$S25,$T25),\"\"))","v":false},false,false,false,null,false,false,{"$f":"IF(calc1,IF(ISNUMBER(AW25),IF(COUNT(AW$1:AW25)=1,1,IF(COUNT(AW$1:AW25)<COUNT(AW:AW),IF(AH25=MAX(AH$1:AH24),2,3),4))))","v":false},false,false,false,false,false,false,false,false,false,false,false,false,false,false,null,null,null,0,0,0,{"$error":"#N/A"},{"$error":"#N/A"},0,0,0,{"$error":"#N/A"}]
["timing","slow",null,null,null,null,null,null,null,null,null,null,null,null,null,false,false,false,false,false,false,false,false,false,false,false,false,{"$f":"IF(AND(calc1,calc2),IF($Z26>$B$44*($R26*24),deepest(INDEX(cdr,,6),INDEX(cdr,,1),\"=1\",INDEX(cdr,,2),\"\",$Z26,$B$45*$Z26,INDEX(cdr,,4),$S26,$T26),\"\"))","v":false},false,false,false,null,false,false,{"$f":"IF(calc1,IF(ISNUMBER(AW26),IF(COUNT(AW$1:AW26)=1,1,IF(COUNT(AW$1:AW26)<COUNT(AW:AW),IF(AH26=MAX(AH$1:AH25),2,3),4))))","v":false},false,false,false,false,false,false,false,false,false,false,false,false,false,false,null,null,"→  Oct 15 Tuesday 23:01   Δ15h",0,0,0,{"$error":"#N/A"},{"$error":"#N/A"},0,0,0,0]
["oldest",40,null,null,null,null,null,null,null,null,null,null,null,null,null,false,false,false,false,false,false,false,false,false,false,false,false,{"$f":"IF(AND(calc1,calc2),IF($Z27>$B$44*($R27*24),deepest(INDEX(cdr,,6),INDEX(cdr,,1),\"=1\",INDEX(cdr,,2),\"\",$Z27,$B$45*$Z27,INDEX(cdr,,4),$S27,$T27),\"\"))","v":false},false,false,false,null,false,false,{"$f":"IF(calc1,IF(ISNUMBER(AW27),IF(COUNT(AW$1:AW27)=1,1,IF(COUNT(AW$1:AW27)<COUNT(AW:AW),IF(AH27=MAX(AH$1:AH26),2,3),4))))","v":false},false,false,false,false,false,false,false,false,false,false,false,false,false,false,null,null,null,0,0,0,{"$error":"#N/A"},{"$error":"#N/A"},0,0,0,{"$error":"#N/A"}]
["min",1,null,null,null,null,null,null,null,null,null,null,null,null,null,false,false,false,false,false,false,false,false,false,false,false,false,{"$f":"IF(AND(calc1,calc2),IF($Z28>$B$44*($R28*24),deepest(INDEX(cdr,,6),INDEX(cdr,,1),\"=1\",INDEX(cdr,,2),\"\",$Z28,$B$45*$Z28,INDEX(cdr,,4),$S28,$T28),\"\"))","v":false},false,false,false,null,false,false,{"$f":"IF(calc1,IF(ISNUMBER(AW28),IF(COUNT(AW$1:AW28)=1,1,IF(COUNT(AW$1:AW28)<COUNT(AW:AW),IF(AH28=MAX(AH$1:AH27),2,3),4))))","v":false},false,false,false,false,false,false,false,false,false,false,false,false,false,false,null,null,"→  Oct 17 Thursday 03:00   Δ13h",0,0,0,{"$error":"#N/A"},{"$error":"#N/A"},0,0,0,0]
["max",5,null,null,null,null,null,null,null,null,null,null,null,null,null,false,false,false,false,false,false,false,false,false,false,false,false,{"$f":"IF(AND(calc1,calc2),IF($Z29>$B$44*($R29*24),deepest(INDEX(cdr,,6),INDEX(cdr,,1),\"=1\",INDEX(cdr,,2),\"\",$Z29,$B$45*$Z29,INDEX(cdr,,4),$S29,$T29),\"\"))","v":false},false,false,false,null,false,false,{"$f":"IF(calc1,IF(ISNUMBER(AW29),IF(COUNT(AW$1:AW29)=1,1,IF(COUNT(AW$1:AW29)<COUNT(AW:AW),IF(AH29=MAX(AH$1:AH28),2,3),4))))","v":false},false,false,false,false,false,false,false,false,false,false,false,false,false,false,null,null,null,0,0,0,{"$error":"#N/A"},{"$error":"#N/A"},0,0,0,{"$error":"#N/A"}]
["margin",3,null,null,null,null,null,null,null,null,null,null,null,null,null,false,false,false,false,false,false,false,false,false,false,false,false,{"$f":"IF(AND(calc1,calc2),IF($Z30>$B$44*($R30*24),deepest(INDEX(cdr,,6),INDEX(cdr,,1),\"=1\",INDEX(cdr,,2),\"\",$Z30,$B$45*$Z30,INDEX(cdr,,4),$S30,$T30),\"\"))","v":false},false,false,false,null,false,false,{"$f":"IF(calc1,IF(ISNUMBER(AW30),IF(COUNT(AW$1:AW30)=1,1,IF(COUNT(AW$1:AW30)<COUNT(AW:AW),IF(AH30=MAX(AH$1:AH29),2,3),4))))","v":false},false,false,false,false,false,false,false,false,false,false,false,false,false,false,null,null,"→  Oct 18 Friday 04:57   Δ12h",0,0,0,{"$error":"#N/A"},{"$error":"#N/A"},0,0,0,0]
["UTC last",null,null,null,null,null,null,null,null,null,null,null,null,null,null,false,false,false,false,false,false,false,false,false,false,false,false,{"$f":"IF(AND(calc1,calc2),IF($Z31>$B$44*($R31*24),deepest(INDEX(cdr,,6),INDEX(cdr,,1),\"=1\",INDEX(cdr,,2),\"\",$Z31,$B$45*$Z31,INDEX(cdr,,4),$S31,$T31),\"\"))","v":false},false,false,false,null,false,false,{"$f":"IF(calc1,IF(ISNUMBER(AW31),IF(COUNT(AW$1:AW31)=1,1,IF(COUNT(AW$1:AW31)<COUNT(AW:AW),IF(AH31=MAX(AH$1:AH30),2,3),4))))","v":false},false,false,false,false,false,false,false,false,false,false,false,false,false,false,null,null,null,0,0,0,{"$error":"#N/A"},{"$error":"#N/A"},0,0,0,{"$error":"#N/A"}]
[null,null,null,null,null,null,null,null,null,null,null,null,null,null,null,false,false,false,false,false,false,false,false,false,false,false,false,{"$f":"IF(AND(calc1,calc2),IF($Z32>$B$44*($R32*24),deepest(INDEX(cdr,,6),INDEX(cdr,,1),\"=1\",INDEX(cdr,,2),\"\",$Z32,$B$45*$Z32,INDEX(cdr,,4),$S32,$T32),\"\"))","v":false},false,false,false,null,false,false,{"$f":"IF(calc1,IF(ISNUMBER(AW32),IF(COUNT(AW$1:AW32)=1,1,IF(COUNT(AW$1:AW32)<COUNT(AW:AW),IF(AH32=MAX(AH$1:AH31),2,3),4))))","v":false},false,false,false,false,false,false,false,false,false,false,false,false,false,false,null,null,"→  Oct 19 Saturday 05:02   Δ12h",0,0,0,{"$error":"#N/A"},{"$error":"#N/A"},0,0,0,0]
["cdr_lines",777000,null,null,null,null,null,null,null,null,null,null,null,null,null,false,false,false,false,false,false,false,false,false,false,false,false,{"$f":"IF(AND(calc1,calc2),IF($Z33>$B$44*($R33*24),deepest(INDEX(cdr,,6),INDEX(cdr,,1),\"=1\",INDEX(cdr,,2),\"\",$Z33,$B$45*$Z33,INDEX(cdr,,4),$S33,$T33),\"\"))","v":false},false,false,false,null,false,false,{"$f":"IF(calc1,IF(ISNUMBER(AW33),IF(COUNT(AW$1:AW33)=1,1,IF(COUNT(AW$1:AW33)<COUNT(AW:AW),IF(AH33=MAX(AH$1:AH32),2,3),4))))","v":false},false,false,false,false,false,false,false,false,false,false,false,false,false,false,null,null,null,0,0,0,{"$error":"#N/A"},{"$error":"#N/A"},0,0,0,{"$error":"#N/A"}]
[null,null,null,null,null,null,null,null,null,null,null,null,null,null,null,false,false,false,false,{"$f":"IF(calc1,IF(P34=MAX(P:P),\">0\",\"<\"&(Q34+R34)))","v":false},false,false,{"$f":"IF(calc1,COUNTIFS(INDEX(cdr,,1),\"=1\",INDEX(cdr,,4),$S34,INDEX(cdr,,4),$T34,INDEX(cdr,,8),\">=\"&$B$43))","v":false},false,false,false,false,{"$f":"IF(AND(calc1,calc2),IF($Z34>$B$44*($R34*24),deepest(INDEX(cdr,,6),INDEX(cdr,,1),\"=1\",INDEX(cdr,,2),\"\",$Z34,$B$45*$Z34,INDEX(cdr,,4),$S34,$T34),\"\"))","v":false},false,false,{"$f":"IF(AND(calc1,calc2),IF(LEN($AB34)>=$B$46,ROUND(AC34/(R34*24),4)/ROUND(SUMIF(INDEX(cdr,,2),\"=\"&AB34&\"*\",INDEX(cdr,,6))/($B$37*24),4)))","v":false},null,false,false,{"$f":"IF(calc1,IF(ISNUMBER(AW34),IF(COUNT(AW$1:AW34)=1,1,IF(COUNT(AW$1:AW34)<COUNT(AW:AW),IF(AH34=MAX(AH$1:AH33),2,3),4))))","v":false},false,false,{"$f":"IF(calc1,REPT(\" \",3*(MAX(AK:AK)-AK34+1))&AJ34)","v":false},false,{"$f":"IF(calc1,IF(AI34,CHOOSE(AI34,\"↑  \"&TEXT($B$35+time_zone/24,\"yyyy mmm d dddd hh:mm\")&AL34,TEXT(AG34,\"hh:mm\")&AL34,\"→  \"&TEXT(AG34,\"mmm d dddd hh:mm\")&AL34,\"↓  \"&TEXT($B$36+time_zone/24,\"yyyy mmm d dddd hh:mm\")&AL34),\"\"))","v":false},{"$f":"IF(calc1,($Z34-IF(calc2,IF($AE34,IF($AE34>$B$47,$AC34,0),0),0))/(24*$R34))","v":false},{"$f":"IF(calc1,IF(calc2,IF($AE34,IF($AE34>$B$47,$AC34,0),0),0)/(24*$R34))","v":false},false,false,{"$f":"IF(calc1,IF(V34,X34/V34/1000*$B$49,NA()))","v":false},{"$f":"IF(calc1,$W34/($R34*24*60)*$B$50)","v":false},{"$f":"IF(calc1,($U34-$W34)/($R34*24*60)*$B$50)","v":false},false,{"$f":"IF(calc1,IF(MOD(ROW()-1,$B$54),0,NA()))","v":false},null,null,"→  Oct 20 Sunday 03:23   Δ11h",0,0,0,{"$error":"#N/A"},{"$error":"#N/A"},0,0,0,0]
["first call",{"$f":"IF(calc1,MIN(INDEX(cdr,,4)))","v":false},null,null,null,null,null,null,null,null,null,null,null,null,null,false,false,{"$f":"IF(calc1,R34/$B$40)","v":false},false,false,false,false,false,false,false,false,false,{"$f":"IF(AND(calc1,calc2),IF($Z35>$B$44*($R35*24),deepest(INDEX(cdr,,6),INDEX(cdr,,1),\"=1\",INDEX(cdr,,2),\"\",$Z35,$B$45*$Z35,INDEX(cdr,,4),$S35,$T35),\"\"))","v":false},false,false,false,null,false,false,{"$f":"IF(calc1,IF(ISNUMBER(AW35),IF(COUNT(AW$1:AW35)=1,1,IF(COUNT(AW$1:AW35)<COUNT(AW:AW),IF(AH35=MAX(AH$1:AH34),2,3),4))))","v":false},false,false,false,false,false,false,false,false,false,false,false,false,false,false,null,null,null,0,0,0,{"$error":"#N/A"},{"$error":"#N/A"},0,0,0,{"$error":"#N/A"}]
["last call",{"$f":"IF(calc1,MAX(INDEX(cdr,,4)))","v":false},null,null,null,null,null,null,null,null,null,null,null,null,null,false,false,false,false,false,false,false,false,false,false,false,false,{"$f":"IF(AND(calc1,calc2),IF($Z36>$B$44*($R36*24),deepest(INDEX(cdr,,6),INDEX(cdr,,1),\"=1\",INDEX(cdr,,2),\"\",$Z36,$B$45*$Z36,INDEX(cdr,,4),$S36,$T36),\"\"))","v":false},false,false,false,null,false,false,{"$f":"IF(calc1,IF(ISNUMBER(AW36),IF(COUNT(AW$1:AW36)=1,1,IF(COUNT(AW$1:AW36)<COUNT(AW:AW),IF(AH36=MAX(AH$1:AH35),2,3),4))))","v":false},false,false,false,false,false,false,false,false,false,false,false,false,false,false,null,null,"→  Oct 21 Monday 00:07   Δ10h",0,0,0,{"$error":"#N/A"},{"$error":"#N/A"},0,0,0,0]
["period",{"$f":"IF(calc1,MAX(B36-B35,TIME(0,1,1)))","v":false},null,null,null,null,null,null,null,null,null,null,null,null,null,false,false,false,false,false,false,false,false,false,false,false,false,{"$f":"IF(AND(calc1,calc2),IF($Z37>$B$44*($R37*24),deepest(INDEX(cdr,,6),INDEX(cdr,,1),\"=1\",INDEX(cdr,,2),\"\",$Z37,$B$45*$Z37,INDEX(cdr,,4),$S37,$T37),\"\"))","v":false},false,false,false,null,false,false,{"$f":"IF(calc1,IF(ISNUMBER(AW37),IF(COUNT(AW$1:AW37)=1,1,IF(COUNT(AW$1:AW37)<COUNT(AW:AW),IF(AH37=MAX(AH$1:AH36),2,3),4))))","v":false},false,false,false,false,false,false,false,false,false,false,false,false,false,false,null,null,null,0,0,0,{"$error":"#N/A"},{"$error":"#N/A"},0,0,0,{"$error":"#N/A"}]
["time intervals",{"$f":"IF(calc1,MAX(P:P))","v":false},null,null,null,null,null,null,null,null,null,null,null,null,null,false,false,false,false,false,false,false,false,false,false,false,false,{"$f":"IF(AND(calc1,calc2),IF($Z38>$B$44*($R38*24),deepest(INDEX(cdr,,6),INDEX(cdr,,1),\"=1\",INDEX(cdr,,2),\"\",$Z38,$B$45*$Z38,INDEX(cdr,,4),$S38,$T38),\"\"))","v":false},false,false,false,null,false,false,{"$f":"IF(calc1,IF(ISNUMBER(AW38),IF(COUNT(AW$1:AW38)=1,1,IF(COUNT(AW$1:AW38)<COUNT(AW:AW),IF(AH38=MAX(AH$1:AH37),2,3),4))))","v":false},false,false,false,false,false,false,false,false,false,false,false,false,false,false,null,null,"19:21      Δ9h",73.93265477357933,0,45.112210374203492,{"$error":"#N/A"},857.95758928571433,667.99175664457277,982.09728489700603,3671.7982235918762,0]
["largest/smallest",90,null,null,null,null,null,null,null,null,null,null,null,null,null,false,false,false,false,false,false,false,false,false,false,false,false,{"$f":"IF(AND(calc1,calc2),IF($Z39>$B$44*($R39*24),deepest(INDEX(cdr,,6),INDEX(cdr,,1),\"=1\",INDEX(cdr,,2),\"\",$Z39,$B$45*$Z39,INDEX(cdr,,4),$S39,$T39),\"\"))","v":false},false,false,false,null,false,false,{"$f":"IF(calc1,IF(ISNUMBER(AW39),IF(COUNT(AW$1:AW39)=1,1,IF(COUNT(AW$1:AW39)<COUNT(AW:AW),IF(AH39=MAX(AH$1:AH38),2,3),4))))","v":false},false,false,false,false,false,false,false,false,false,false,false,false,false,false,null,null,null,17.991128131405176,0,11.393732709668129,{"$error":"#N/A"},792.10288808664268,174.54699613287733,201.83164435065044,536.77873339664188,{"$error":"#N/A"}]
["time factor",{"$f":"IF(calc1,B39^(1/B38))","v":false},null,null,null,null,null,null,null,null,null,null,null,null,null,false,false,false,false,false,false,false,false,false,false,false,false,{"$f":"IF(AND(calc1,calc2),IF($Z40>$B$44*($R40*24),deepest(INDEX(cdr,,6),INDEX(cdr,,1),\"=1\",INDEX(cdr,,2),\"\",$Z40,$B$45*$Z40,INDEX(cdr,,4),$S40,$T40),\"\"))","v":false},false,false,false,null,false,false,{"$f":"IF(calc1,IF(ISNUMBER(AW40),IF(COUNT(AW$1:AW40)=1,1,IF(COUNT(AW$1:AW40)<COUNT(AW:AW),IF(AH40=MAX(AH$1:AH39),2,3),4))))","v":false},false,false,false,false,false,false,false,false,false,false,false,false,false,false,null,null,"→  Oct 22 Tuesday 13:11      Δ9h",76.719841046629256,0,30.620624695191452,{"$error":"#N/A"},828.04474554907836,1034.3309967033258,1375.8096225142156,3759.363414405128,0]
["smallest",{"$f":"IF(calc1,B37*(B40-1)/(B39*B40-1))","v":false},null,null,null,null,null,null,null,null,null,null,null,null,null,false,false,false,false,false,false,false,false,false,false,false,false,{"$f":"IF(AND(calc1,calc2),IF($Z41>$B$44*($R41*24),deepest(INDEX(cdr,,6),INDEX(cdr,,1),\"=1\",INDEX(cdr,,2),\"\",$Z41,$B$45*$Z41,INDEX(cdr,,4),$S41,$T41),\"\"))","v":false},false,false,false,null,false,false,{"$f":"IF(calc1,IF(ISNUMBER(AW41),IF(COUNT(AW$1:AW41)=1,1,IF(COUNT(AW$1:AW41)<COUNT(AW:AW),IF(AH41=MAX(AH$1:AH40),2,3),4))))","v":false},false,false,false,false,false,false,false,false,false,false,false,false,false,false,null,null,null,71.789536329851956,0,55.4612118764909,{"$error":"#N/A"},872.31936654569449,527.76125377255585,667.55755534437037,3288.8328845446213,{"$error":"#N/A"}]
["largest",{"$f":"IF(calc1,B39*B41)","v":false},null,null,null,null,null,null,null,null,null,null,null,null,null,false,false,false,false,false,false,false,false,false,false,false,false,{"$f":"IF(AND(calc1,calc2),IF($Z42>$B$44*($R42*24),deepest(INDEX(cdr,,6),INDEX(cdr,,1),\"=1\",INDEX(cdr,,2),\"\",$Z42,$B$45*$Z42,INDEX(cdr,,4),$S42,$T42),\"\"))","v":false},false,false,false,null,false,false,{"$f":"IF(calc1,IF(ISNUMBER(AW42),IF(COUNT(AW$1:AW42)=1,1,IF(COUNT(AW$1:AW42)<COUNT(AW:AW),IF(AH42=MAX(AH$1:AH41),2,3),4))))","v":false},false,false,false,false,false,false,false,false,false,false,false,false,false,false,null,null,"→  Oct 23 Wednesday 05:45      Δ8h",24.112526720571037,0,12.226180184743759,{"$error":"#N/A"},806.19528619528626,272.08140544340222,382.08510971952035,910.08615964347598,0]
["spoken",10,null,null,null,null,null,null,null,null,null,null,null,null,null,false,false,false,false,false,false,false,false,false,false,false,false,{"$f":"IF(AND(calc1,calc2),IF($Z43>$B$44*($R43*24),deepest(INDEX(cdr,,6),INDEX(cdr,,1),\"=1\",INDEX(cdr,,2),\"\",$Z43,$B$45*$Z43,INDEX(cdr,,4),$S43,$T43),\"\"))","v":false},false,false,false,null,false,false,{"$f":"IF(calc1,IF(ISNUMBER(AW43),IF(COUNT(AW$1:AW43)=1,1,IF(COUNT(AW$1:AW43)<COUNT(AW:AW),IF(AH43=MAX(AH$1:AH42),2,3),4))))","v":false},false,false,false,false,false,false,false,false,false,false,false,false,false,false,null,null,null,64.685496724209017,0,20.783529012863681,{"$error":"#N/A"},819.74050046339198,817.25302117085585,980.52992656949641,3257.0116663837121,{"$error":"#N/A"}]
["drilling cost/h",77,null,null,null,null,null,null,null,null,null,null,null,null,null,false,false,false,false,false,false,false,false,false,false,false,false,{"$f":"IF(AND(calc1,calc2),IF($Z44>$B$44*($R44*24),deepest(INDEX(cdr,,6),INDEX(cdr,,1),\"=1\",INDEX(cdr,,2),\"\",$Z44,$B$45*$Z44,INDEX(cdr,,4),$S44,$T44),\"\"))","v":false},false,false,false,null,false,false,{"$f":"IF(calc1,IF(ISNUMBER(AW44),IF(COUNT(AW$1:AW44)=1,1,IF(COUNT(AW$1:AW44)<COUNT(AW:AW),IF(AH44=MAX(AH$1:AH43),2,3),4))))","v":false},false,false,false,false,false,false,false,false,false,false,false,false,false,false,null,null,"21:06      Δ7h",0,0,0,{"$error":"#N/A"},{"$error":"#N/A"},0,0,0,0]
["drill down until",0.3,null,null,null,null,null,null,null,null,null,null,null,null,null,false,false,false,false,false,false,false,false,false,false,false,false,{"$f":"IF(AND(calc1,calc2),IF($Z45>$B$44*($R45*24),deepest(INDEX(cdr,,6),INDEX(cdr,,1),\"=1\",INDEX(cdr,,2),\"\",$Z45,$B$45*$Z45,INDEX(cdr,,4),$S45,$T45),\"\"))","v":false},false,false,false,null,false,false,{"$f":"IF(calc1,IF(ISNUMBER(AW45),IF(COUNT(AW$1:AW45)=1,1,IF(COUNT(AW$1:AW45)<COUNT(AW:AW),IF(AH45=MAX(AH$1:AH44),2,3),4))))","v":false},false,false,false,false,false,false,false,false,false,false,false,false,false,false,null,null,null,0,0,0,{"$error":"#N/A"},{"$error":"#N/A"},0,0,0,{"$error":"#N/A"}]
["shortest prefix",1,null,null,null,null,null,null,null,null,null,null,null,null,null,false,false,false,false,false,false,false,false,false,false,false,false,{"$f":"IF(AND(calc1,calc2),IF($Z46>$B$44*($R46*24),deepest(INDEX(cdr,,6),INDEX(cdr,,1),\"=1\",INDEX(cdr,,2),\"\",$Z46,$B$45*$Z46,INDEX(cdr,,4),$S46,$T46),\"\"))","v":false},false,false,false,null,false,false,{"$f":"IF(calc1,IF(ISNUMBER(AW46),IF(COUNT(AW$1:AW46)=1,1,IF(COUNT(AW$1:AW46)<COUNT(AW:AW),IF(AH46=MAX(AH$1:AH45),2,3),4))))","v":false},false,false,false,false,false,false,false,false,false,false,false,false,false,false,null,null,"→  Oct 24 Thursday 11:21      Δ7h",0,0,0,{"$error":"#N/A"},{"$error":"#N/A"},0,0,0,0]
["suspect_factor",22,null,null,null,null,null,null,null,null,null,null,null,null,null,false,false,false,false,false,false,false,false,false,false,false,false,{"$f":"IF(AND(calc1,calc2),IF($Z47>$B$44*($R47*24),deepest(INDEX(cdr,,6),INDEX(cdr,,1),\"=1\",INDEX(cdr,,2),\"\",$Z47,$B$45*$Z47,INDEX(cdr,,4),$S47,$T47),\"\"))","v":false},false,false,false,null,false,false,{"$f":"IF(calc1,IF(ISNUMBER(AW47),IF(COUNT(AW$1:AW47)=1,1,IF(COUNT(AW$1:AW47)<COUNT(AW:AW),IF(AH47=MAX(AH$1:AH46),2,3),4))))","v":false},false,false,false,false,false,false,false,false,false,false,false,false,false,false,null,null,null,0,0,0,{"$error":"#N/A"},{"$error":"#N/A"},0,0,0,{"$error":"#N/A"}]
["suspect_new",null,null,null,null,null,null,null,null,null,null,null,null,null,null,false,false,false,false,false,false,false,false,false,false,false,false,{"$f":"IF(AND(calc1,calc2),IF($Z48>$B$44*($R48*24),deepest(INDEX(cdr,,6),INDEX(cdr,,1),\"=1\",INDEX(cdr,,2),\"\",$Z48,$B$45*$Z48,INDEX(cdr,,4),$S48,$T48),\"\"))","v":false},false,false,false,null,false,false,{"$f":"IF(calc1,IF(ISNUMBER(AW48),IF(COUNT(AW$1:AW48)=1,1,IF(COUNT(AW$1:AW48)<COUNT(AW:AW),IF(AH48=MAX(AH$1:AH47),2,3),4))))","v":false},false,false,false,false,false,false,false,false,false,false,false,false,false,false,null,null,"→  Oct 25 Friday 00:34      Δ6h",0,0,0,{"$error":"#N/A"},{"$error":"#N/A"},0,0,0,0]
["PDD factor",50,null,null,null,null,null,null,null,null,null,null,null,null,null,false,false,false,false,false,false,false,false,false,false,false,false,{"$f":"IF(AND(calc1,calc2),IF($Z49>$B$44*($R49*24),deepest(INDEX(cdr,,6),INDEX(cdr,,1),\"=1\",INDEX(cdr,,2),\"\",$Z49,$B$45*$Z49,INDEX(cdr,,4),$S49,$T49),\"\"))","v":false},false,false,false,null,false,false,{"$f":"IF(calc1,IF(ISNUMBER(AW49),IF(COUNT(AW$1:AW49)=1,1,IF(COUNT(AW$1:AW49)<COUNT(AW:AW),IF(AH49=MAX(AH$1:AH48),2,3),4))))","v":false},false,false,false,false,false,false,false,false,false,false,false,false,false,false,null,null,null,0,0,0,{"$error":"#N/A"},{"$error":"#N/A"},0,0,0,{"$error":"#N/A"}]
["Call factor",100,null,null,null,null,null,null,null,null,null,null,null,null,null,false,false,false,false,false,false,false,false,false,false,false,false,{"$f":"IF(AND(calc1,calc2),IF($Z50>$B$44*($R50*24),deepest(INDEX(cdr,,6),INDEX(cdr,,1),\"=1\",INDEX(cdr,,2),\"\",$Z50,$B$45*$Z50,INDEX(cdr,,4),$S50,$T50),\"\"))","v":false},false,false,false,null,false,false,{"$f":"IF(calc1,IF(ISNUMBER(AW50),IF(COUNT(AW$1:AW50)=1,1,IF(COUNT(AW$1:AW50)<COUNT(AW:AW),IF(AH50=MAX(AH$1:AH49),2,3),4))))","v":false},false,false,false,false,false,false,false,false,false,false,false,false,false,false,null,null,"12:50      Δ6h",0,0,0,{"$error":"#N/A"},{"$error":"#N/A"},0,0,0,0]
["calc1",false,null,null,null,null,null,null,null,null,null,null,null,null,null,false,false,false,false,false,false,false,false,false,false,false,false,{"$f":"IF(AND(calc1,calc2),IF($Z51>$B$44*($R51*24),deepest(INDEX(cdr,,6),INDEX(cdr,,1),\"=1\",INDEX(cdr,,2),\"\",$Z51,$B$45*$Z51,INDEX(cdr,,4),$S51,$T51),\"\"))","v":false},false,false,false,null,false,false,{"$f":"IF(calc1,IF(ISNUMBER(AW51),IF(COUNT(AW$1:AW51)=1,1,IF(COUNT(AW$1:AW51)<COUNT(AW:AW),IF(AH51=MAX(AH$1:AH50),2,3),4))))","v":false},false,false,false,false,false,false,false,false,false,false,false,false,false,false,null,null,null,0,0,0,{"$error":"#N/A"},{"$error":"#N/A"},0,0,0,{"$error":"#N/A"}]
["calc2",true,null,null,null,null,null,null,null,null,null,null,null,null,null,false,false,false,false,false,false,false,false,false,false,false,false,{"$f":"IF(AND(calc1,calc2),IF($Z52>$B$44*($R52*24),deepest(INDEX(cdr,,6),INDEX(cdr,,1),\"=1\",INDEX(cdr,,2),\"\",$Z52,$B$45*$Z52,INDEX(cdr,,4),$S52,$T52),\"\"))","v":false},false,false,false,null,false,false,{"$f":"IF(calc1,IF(ISNUMBER(AW52),IF(COUNT(AW$1:AW52)=1,1,IF(COUNT(AW$1:AW52)<COUNT(AW:AW),IF(AH52=MAX(AH$1:AH51),2,3),4))))","v":false},false,false,false,false,false,false,false,false,false,false,false,false,false,false,null,null,"→  Oct 26 Saturday 00:13      Δ5h",0,0,0,{"$error":"#N/A"},{"$error":"#N/A"},0,0,0,0]
["max labels",70,null,null,null,null,null,null,null,null,null,null,null,null,null,false,false,false,false,false,false,false,false,false,false,false,false,{"$f":"IF(AND(calc1,calc2),IF($Z53>$B$44*($R53*24),deepest(INDEX(cdr,,6),INDEX(cdr,,1),\"=1\",INDEX(cdr,,2),\"\",$Z53,$B$45*$Z53,INDEX(cdr,,4),$S53,$T53),\"\"))","v":false},false,false,false,null,false,false,{"$f":"IF(calc1,IF(ISNUMBER(AW53),IF(COUNT(AW$1:AW53)=1,1,IF(COUNT(AW$1:AW53)<COUNT(AW:AW),IF(AH53=MAX(AH$1:AH52),2,3),4))))","v":false},false,false,false,false,false,false,false,false,false,false,false,false,false,false,null,null,null,0,0,0,{"$error":"#N/A"},{"$error":"#N/A"},0,0,0,{"$error":"#N/A"}]
["label every",{"$f":"IF(calc1,CEILING(B38/B53,1))","v":false},null,null,null,null,null,null,null,null,null,null,null,null,null,false,false,false,false,false,false,false,false,false,false,false,false,{"$f":"IF(AND(calc1,calc2),IF($Z54>$B$44*($R54*24),deepest(INDEX(cdr,,6),INDEX(cdr,,1),\"=1\",INDEX(cdr,,2),\"\",$Z54,$B$45*$Z54,INDEX(cdr,,4),$S54,$T54),\"\"))","v":false},false,false,false,null,false,false,{"$f":"IF(calc1,IF(ISNUMBER(AW54),IF(COUNT(AW$1:AW54)=1,1,IF(COUNT(AW$1:AW54)<COUNT(AW:AW),IF(AH54=MAX(AH$1:AH53),2,3),4))))","v":false},false,false,false,false,false,false,false,false,false,false,false,false,false,false,null,null,"10:46      Δ5h",0,0,0,{"$error":"#N/A"},{"$error":"#N/A"},0,0,0,0]
[null,null,null,null,null,null,null,null,null,null,null,null,null,null,null,false,false,false,false,false,false,false,false,false,false,false,false,{"$f":"IF(AND(calc1,calc2),IF($Z55>$B$44*($R55*24),deepest(INDEX(cdr,,6),INDEX(cdr,,1),\"=1\",INDEX(cdr,,2),\"\",$Z55,$B$45*$Z55,INDEX(cdr,,4),$S55,$T55),\"\"))","v":false},false,false,false,null,false,false,{"$f":"IF(calc1,IF(ISNUMBER(AW55),IF(COUNT(AW$1:AW55)=1,1,IF(COUNT(AW$1:AW55)<COUNT(AW:AW),IF(AH55=MAX(AH$1:AH54),2,3),4))))","v":false},false,false,false,false,false,false,false,false,false,false,false,false,false,false,null,null,null,0,0,0,{"$error":"#N/A"},{"$error":"#N/A"},0,0,0,{"$error":"#N/A"}]
["smtp_debug",false,null,null,null,null,null,null,null,null,null,null,null,null,null,false,false,false,false,false,false,false,false,false,false,false,false,{"$f":"IF(AND(calc1,calc2),IF($Z56>$B$44*($R56*24),deepest(INDEX(cdr,,6),INDEX(cdr,,1),\"=1\",INDEX(cdr,,2),\"\",$Z56,$B$45*$Z56,INDEX(cdr,,4),$S56,$T56),\"\"))","v":false},false,false,false,null,false,false,{"$f":"IF(calc1,IF(ISNUMBER(AW56),IF(COUNT(AW$1:AW56)=1,1,IF(COUNT(AW$1:AW56)<COUNT(AW:AW),IF(AH56=MAX(AH$1:AH55),2,3),4))))","v":false},false,false,false,false,false,false,false,false,false,false,false,false,false,false,null,null,"20:33      Δ5h",0,0,0,{"$error":"#N/A"},{"$error":"#N/A"},0,0,0,0]
["smtp_to","Emin Gabrielyan <emin.gabrielyan@gmail.com>",null,null,null,null,null,null,null,null,null,null,null,null,null,false,false,false,false,false,false,false,false,false,false,false,false,{"$f":"IF(AND(calc1,calc2),IF($Z57>$B$44*($R57*24),deepest(INDEX(cdr,,6),INDEX(cdr,,1),\"=1\",INDEX(cdr,,2),\"\",$Z57,$B$45*$Z57,INDEX(cdr,,4),$S57,$T57),\"\"))","v":false},false,false,false,null,false,false,{"$f":"IF(calc1,IF(ISNUMBER(AW57),IF(COUNT(AW$1:AW57)=1,1,IF(COUNT(AW$1:AW57)<COUNT(AW:AW),IF(AH57=MAX(AH$1:AH56),2,3),4))))","v":false},false,false,false,false,false,false,false,false,false,false,false,false,false,false,null,null,null,0,0,0,{"$error":"#N/A"},{"$error":"#N/A"},0,0,0,{"$error":"#N/A"}]
["smtp_to","Emin Gabrielyan <emin.gabrielyan@switzernet.com>",null,null,null,null,null,null,null,null,null,null,null,null,null,false,false,false,false,false,false,false,false,false,false,false,false,{"$f":"IF(AND(calc1,calc2),IF($Z58>$B$44*($R58*24),deepest(INDEX(cdr,,6),INDEX(cdr,,1),\"=1\",INDEX(cdr,,2),\"\",$Z58,$B$45*$Z58,INDEX(cdr,,4),$S58,$T58),\"\"))","v":false},false,false,false,null,false,false,{"$f":"IF(calc1,IF(ISNUMBER(AW58),IF(COUNT(AW$1:AW58)=1,1,IF(COUNT(AW$1:AW58)<COUNT(AW:AW),IF(AH58=MAX(AH$1:AH57),2,3),4))))","v":false},false,false,false,false,false,false,false,false,false,false,false,false,false,false,null,null,"→  Oct 27 Sunday 05:39      Δ4h",0,0,0,{"$error":"#N/A"},{"$error":"#N/A"},0,0,0,0]
["smtp_to","Nicolas Bondier <nicolas.bondier@switzernet.com>",null,null,null,null,null,null,null,null,null,null,null,null,null,false,false,false,false,false,false,false,false,false,false,false,false,{"$f":"IF(AND(calc1,calc2),IF($Z59>$B$44*($R59*24),deepest(INDEX(cdr,,6),INDEX(cdr,,1),\"=1\",INDEX(cdr,,2),\"\",$Z59,$B$45*$Z59,INDEX(cdr,,4),$S59,$T59),\"\"))","v":false},false,false,false,null,false,false,{"$f":"IF(calc1,IF(ISNUMBER(AW59),IF(COUNT(AW$1:AW59)=1,1,IF(COUNT(AW$1:AW59)<COUNT(AW:AW),IF(AH59=MAX(AH$1:AH58),2,3),4))))","v":false},false,false,false,false,false,false,false,false,false,false,false,false,false,false,null,null,null,0,0,0,{"$error":"#N/A"},{"$error":"#N/A"},0,0,0,{"$error":"#N/A"}]
["smtp_to","Elen Virabyan <elen.virabyan@intarnet.com>",null,null,null,null,null,null,null,null,null,null,null,null,null,false,false,false,false,false,false,false,false,false,false,false,false,{"$f":"IF(AND(calc1,calc2),IF($Z60>$B$44*($R60*24),deepest(INDEX(cdr,,6),INDEX(cdr,,1),\"=1\",INDEX(cdr,,2),\"\",$Z60,$B$45*$Z60,INDEX(cdr,,4),$S60,$T60),\"\"))","v":false},false,false,false,null,false,false,{"$f":"IF(calc1,IF(ISNUMBER(AW60),IF(COUNT(AW$1:AW60)=1,1,IF(COUNT(AW$1:AW60)<COUNT(AW:AW),IF(AH60=MAX(AH$1:AH59),2,3),4))))","v":false},false,false,false,false,false,false,false,false,false,false,false,false,false,false,null,null,"14:04      Δ4h",0,0,0,{"$error":"#N/A"},{"$error":"#N/A"},0,0,0,0]
["smtp_to","Sujatha Nampally <sujatha.nampally@switzernet.com>",null,null,null,null,null,null,null,null,null,null,null,null,null,false,false,false,false,false,false,false,false,false,false,false,false,{"$f":"IF(AND(calc1,calc2),IF($Z61>$B$44*($R61*24),deepest(INDEX(cdr,,6),INDEX(cdr,,1),\"=1\",INDEX(cdr,,2),\"\",$Z61,$B$45*$Z61,INDEX(cdr,,4),$S61,$T61),\"\"))","v":false},false,false,false,null,false,false,{"$f":"IF(calc1,IF(ISNUMBER(AW61),IF(COUNT(AW$1:AW61)=1,1,IF(COUNT(AW$1:AW61)<COUNT(AW:AW),IF(AH61=MAX(AH$1:AH60),2,3),4))))","v":false},false,false,false,false,false,false,false,false,false,false,false,false,false,false,null,null,null,0,0,0,{"$error":"#N/A"},{"$error":"#N/A"},0,0,0,{"$error":"#N/A"}]
["smtp_to",null,null,null,null,null,null,null,null,null,null,null,null,null,null,false,false,false,false,false,false,false,false,false,false,false,false,{"$f":"IF(AND(calc1,calc2),IF($Z62>$B$44*($R62*24),deepest(INDEX(cdr,,6),INDEX(cdr,,1),\"=1\",INDEX(cdr,,2),\"\",$Z62,$B$45*$Z62,INDEX(cdr,,4),$S62,$T62),\"\"))","v":false},false,false,false,null,false,false,{"$f":"IF(calc1,IF(ISNUMBER(AW62),IF(COUNT(AW$1:AW62)=1,1,IF(COUNT(AW$1:AW62)<COUNT(AW:AW),IF(AH62=MAX(AH$1:AH61),2,3),4))))","v":false},false,false,false,false,false,false,false,false,false,false,false,false,false,false,null,null,"21:53      Δ4h",0,0,0,{"$error":"#N/A"},{"$error":"#N/A"},0,0,0,0]
["smtp_to",null,null,null,null,null,null,null,null,null,null,null,null,null,null,false,false,false,false,false,false,false,false,false,false,false,false,{"$f":"IF(AND(calc1,calc2),IF($Z63>$B$44*($R63*24),deepest(INDEX(cdr,,6),INDEX(cdr,,1),\"=1\",INDEX(cdr,,2),\"\",$Z63,$B$45*$Z63,INDEX(cdr,,4),$S63,$T63),\"\"))","v":false},false,false,false,null,false,false,{"$f":"IF(calc1,IF(ISNUMBER(AW63),IF(COUNT(AW$1:AW63)=1,1,IF(COUNT(AW$1:AW63)<COUNT(AW:AW),IF(AH63=MAX(AH$1:AH62),2,3),4))))","v":false},false,false,false,false,false,false,false,false,false,false,false,false,false,false,null,null,null,0,0,0,{"$error":"#N/A"},{"$error":"#N/A"},0,0,0,{"$error":"#N/A"}]
["smtp_to",null,null,null,null,null,null,null,null,null,null,null,null,null,null,false,false,false,false,false,false,false,false,false,false,false,false,{"$f":"IF(AND(calc1,calc2),IF($Z64>$B$44*($R64*24),deepest(INDEX(cdr,,6),INDEX(cdr,,1),\"=1\",INDEX(cdr,,2),\"\",$Z64,$B$45*$Z64,INDEX(cdr,,4),$S64,$T64),\"\"))","v":false},false,false,false,null,false,false,{"$f":"IF(calc1,IF(ISNUMBER(AW64),IF(COUNT(AW$1:AW64)=1,1,IF(COUNT(AW$1:AW64)<COUNT(AW:AW),IF(AH64=MAX(AH$1:AH63),2,3),4))))","v":false},false,false,false,false,false,false,false,false,false,false,false,false,false,false,null,null,"→  Oct 28 Monday 05:09      Δ3h",0,0,0,{"$error":"#N/A"},{"$error":"#N/A"},0,0,0,0]
["smtp_to",null,null,null,null,null,null,null,null,null,null,null,null,null,null,false,false,false,false,false,false,false,false,false,false,false,false,{"$f":"IF(AND(calc1,calc2),IF($Z65>$B$44*($R65*24),deepest(INDEX(cdr,,6),INDEX(cdr,,1),\"=1\",INDEX(cdr,,2),\"\",$Z65,$B$45*$Z65,INDEX(cdr,,4),$S65,$T65),\"\"))","v":false},false,false,false,null,false,false,{"$f":"IF(calc1,IF(ISNUMBER(AW65),IF(COUNT(AW$1:AW65)=1,1,IF(COUNT(AW$1:AW65)<COUNT(AW:AW),IF(AH65=MAX(AH$1:AH64),2,3),4))))","v":false},false,false,false,false,false,false,false,false,false,false,false,false,false,false,null,null,null,0,0,0,{"$error":"#N/A"},{"$error":"#N/A"},0,0,0,{"$error":"#N/A"}]
["smtp_cc","You <you@company.com>",null,null,null,null,null,null,null,null,null,null,null,null,null,false,false,false,false,{"$f":"IF(calc1,IF(P66=MAX(P:P),\">0\",\"<\"&(Q66+R66)))","v":false},false,false,{"$f":"IF(calc1,COUNTIFS(INDEX(cdr,,1),\"=1\",INDEX(cdr,,4),$S66,INDEX(cdr,,4),$T66,INDEX(cdr,,8),\">=\"&$B$43))","v":false},false,false,false,false,{"$f":"IF(AND(calc1,calc2),IF($Z66>$B$44*($R66*24),deepest(INDEX(cdr,,6),INDEX(cdr,,1),\"=1\",INDEX(cdr,,2),\"\",$Z66,$B$45*$Z66,INDEX(cdr,,4),$S66,$T66),\"\"))","v":false},false,false,{"$f":"IF(AND(calc1,calc2),IF(LEN($AB66)>=$B$46,ROUND(AC66/(R66*24),4)/ROUND(SUMIF(INDEX(cdr,,2),\"=\"&AB66&\"*\",INDEX(cdr,,6))/($B$37*24),4)))","v":false},null,{"$f":"IF(calc1,$Q66+$R66/2+time_zone/24)","v":false},false,{"$f":"IF(calc1,IF(ISNUMBER(AW66),IF(COUNT(AW$1:AW66)=1,1,IF(COUNT(AW$1:AW66)<COUNT(AW:AW),IF(AH66=MAX(AH$1:AH65),2,3),4))))","v":false},{"$f":"IF(calc1,\"Δ\"&IF($R66>1,TEXT($R66,\"0\\d\"),IF($R66>1/24,TEXT($R66*24,\"0\\h\"),IF($R66>1/(24*60),TEXT($R66*24*60,\"0\\m\"),TEXT($R66*24*60*60,\"0\\s\")))))","v":false},false,{"$f":"IF(calc1,REPT(\" \",3*(MAX(AK:AK)-AK66+1))&AJ66)","v":false},false,{"$f":"IF(calc1,IF(AI66,CHOOSE(AI66,\"↑  \"&TEXT($B$35+time_zone/24,\"yyyy mmm d dddd hh:mm\")&AL66,TEXT(AG66,\"hh:mm\")&AL66,\"→  \"&TEXT(AG66,\"mmm d dddd hh:mm\")&AL66,\"↓  \"&TEXT($B$36+time_zone/24,\"yyyy mmm d dddd hh:mm\")&AL66),\"\"))","v":false},{"$f":"IF(calc1,($Z66-IF(calc2,IF($AE66,IF($AE66>$B$47,$AC66,0),0),0))/(24*$R66))","v":false},{"$f":"IF(calc1,IF(calc2,IF($AE66,IF($AE66>$B$47,$AC66,0),0),0)/(24*$R66))","v":false},{"$f":"IF(calc1,($Y66-$Z66)/(24*$R66))","v":false},false,{"$f":"IF(calc1,IF(V66,X66/V66/1000*$B$49,NA()))","v":false},{"$f":"IF(calc1,$W66/($R66*24*60)*$B$50)","v":false},{"$f":"IF(calc1,($U66-$W66)/($R66*24*60)*$B$50)","v":false},{"$f":"IF(calc1,$AA66/($R66*24)/60)","v":false},{"$f":"IF(calc1,IF(MOD(ROW()-1,$B$54),0,NA()))","v":false},null,null,"11:53      Δ3h",0,0,0,{"$error":"#N/A"},{"$error":"#N/A"},0,0,0,0]
["smtp_cc","He <you@company.com>",null,null,null,null,null,null,null,null,null,null,null,null,null,false,false,{"$f":"IF(calc1,R66/$B$40)","v":false},{"$f":"IF(calc1,\">=\"&Q67)","v":false},false,false,false,false,false,false,false,false,{"$f":"IF(AND(calc1,calc2),IF($Z67>$B$44*($R67*24),deepest(INDEX(cdr,,6),INDEX(cdr,,1),\"=1\",INDEX(cdr,,2),\"\",$Z67,$B$45*$Z67,INDEX(cdr,,4),$S67,$T67),\"\"))","v":false},false,false,false,null,false,{"$f":"IF(calc1,IF(ISNUMBER(AW67),INT(AG67),\"\"))","v":false},{"$f":"IF(calc1,IF(ISNUMBER(AW67),IF(COUNT(AW$1:AW67)=1,1,IF(COUNT(AW$1:AW67)<COUNT(AW:AW),IF(AH67=MAX(AH$1:AH66),2,3),4))))","v":false},false,{"$f":"IF(calc1,LEN(AJ67))","v":false},false,{"$f":"IF(calc1,IF(AND(calc2,AP67),\"+\"&$AB67&\"   \"&ROUND(AP67,0)&\" €/h = \"&TEXT(AC67/Z67,\"0%\"),\"\"))","v":false},false,false,false,false,{"$f":"IF(calc1,IF(AP67,MAX(OFFSET(AO67,-1,0,3,1))+MAX(OFFSET(AP67,-1,0,3,1))+MAX(OFFSET(AQ67,-1,0,3,1),0),NA()))","v":false},false,false,false,false,false,null,null,null,0,0,0,{"$error":"#N/A"},{"$error":"#N/A"},0,0,0,{"$error":"#N/A"}]
["smtp_cc","She <you@company.com>",null,null,null,null,null,null,null,null,null,null,null,null,null,false,{"$f":"IF(calc1,Q67+R67)","v":false},false,false,false,false,false,false,false,false,false,false,{"$f":"IF(AND(calc1,calc2),IF($Z68>$B$44*($R68*24),deepest(INDEX(cdr,,6),INDEX(cdr,,1),\"=1\",INDEX(cdr,,2),\"\",$Z68,$B$45*$Z68,INDEX(cdr,,4),$S68,$T68),\"\"))","v":false},false,false,false,null,false,false,{"$f":"IF(calc1,IF(ISNUMBER(AW68),IF(COUNT(AW$1:AW68)=1,1,IF(COUNT(AW$1:AW68)<COUNT(AW:AW),IF(AH68=MAX(AH$1:AH67),2,3),4))))","v":false},false,false,false,false,false,false,false,false,false,false,false,false,false,false,null,null,"18:07      Δ3h",0,0,0,{"$error":"#N/A"},{"$error":"#N/A"},0,0,0,0]
["smtp_cc",null,null,null,null,null,null,null,null,null,null,null,null,null,null,false,false,false,false,false,false,false,false,false,false,false,false,{"$f":"IF(AND(calc1,calc2),IF($Z69>$B$44*($R69*24),deepest(INDEX(cdr,,6),INDEX(cdr,,1),\"=1\",INDEX(cdr,,2),\"\",$Z69,$B$45*$Z69,INDEX(cdr,,4),$S69,$T69),\"\"))","v":false},false,false,false,null,false,false,{"$f":"IF(calc1,IF(ISNUMBER(AW69),IF(COUNT(AW$1:AW69)=1,1,IF(COUNT(AW$1:AW69)<COUNT(AW:AW),IF(AH69=MAX(AH$1:AH68),2,3),4))))","v":false},false,false,false,false,false,false,false,false,false,false,false,false,false,false,null,null,null,0,0,0,{"$error":"#N/A"},{"$error":"#N/A"},0,0,0,{"$error":"#N/A"}]
["smtp_cc",null,null,null,null,null,null,null,null,null,null,null,null,null,null,false,false,false,false,false,false,false,false,false,false,false,false,{"$f":"IF(AND(calc1,calc2),IF($Z70>$B$44*($R70*24),deepest(INDEX(cdr,,6),INDEX(cdr,,1),\"=1\",INDEX(cdr,,2),\"\",$Z70,$B$45*$Z70,INDEX(cdr,,4),$S70,$T70),\"\"))","v":false},false,false,false,null,false,false,{"$f":"IF(calc1,IF(ISNUMBER(AW70),IF(COUNT(AW$1:AW70)=1,1,IF(COUNT(AW$1:AW70)<COUNT(AW:AW),IF(AH70=MAX(AH$1:AH69),2,3),4))))","v":false},false,false,false,false,false,false,false,false,false,false,false,false,false,false,null,null,"23:55      Δ3h",0,0,0,{"$error":"#N/A"},{"$error":"#N/A"},0,0,0,0]
["smtp_cc",null,null,null,null,null,null,null,null,null,null,null,null,null,null,false,false,false,false,false,false,false,false,false,false,false,false,{"$f":"IF(AND(calc1,calc2),IF($Z71>$B$44*($R71*24),deepest(INDEX(cdr,,6),INDEX(cdr,,1),\"=1\",INDEX(cdr,,2),\"\",$Z71,$B$45*$Z71,INDEX(cdr,,4),$S71,$T71),\"\"))","v":false},false,false,false,null,false,false,{"$f":"IF(calc1,IF(ISNUMBER(AW71),IF(COUNT(AW$1:AW71)=1,1,IF(COUNT(AW$1:AW71)<COUNT(AW:AW),IF(AH71=MAX(AH$1:AH70),2,3),4))))","v":false},false,false,false,false,false,false,false,false,false,false,false,false,false,false,null,null,null,0,0,0,{"$error":"#N/A"},{"$error":"#N/A"},0,0,0,{"$error":"#N/A"}]
["smtp_cc",null,null,null,null,null,null,null,null,null,null,null,null,null,null,false,false,false,false,false,false,false,false,false,false,false,false,{"$f":"IF(AND(calc1,calc2),IF($Z72>$B$44*($R72*24),deepest(INDEX(cdr,,6),INDEX(cdr,,1),\"=1\",INDEX(cdr,,2),\"\",$Z72,$B$45*$Z72,INDEX(cdr,,4),$S72,$T72),\"\"))","v":false},false,false,false,null,false,false,{"$f":"IF(calc1,IF(ISNUMBER(AW72),IF(COUNT(AW$1:AW72)=1,1,IF(COUNT(AW$1:AW72)<COUNT(AW:AW),IF(AH72=MAX(AH$1:AH71),2,3),4))))","v":false},false,false,false,false,false,false,false,false,false,false,false,false,false,false,null,null,"→  Oct 29 Tuesday 05:17      Δ3h",0,0,0,{"$error":"#N/A"},{"$error":"#N/A"},0,0,0,0]
["smtp_cc",null,null,null,null,null,null,null,null,null,null,null,null,null,null,false,false,false,false,false,false,false,false,false,false,false,false,{"$f":"IF(AND(calc1,calc2),IF($Z73>$B$44*($R73*24),deepest(INDEX(cdr,,6),INDEX(cdr,,1),\"=1\",INDEX(cdr,,2),\"\",$Z73,$B$45*$Z73,INDEX(cdr,,4),$S73,$T73),\"\"))","v":false},false,false,false,null,false,false,{"$f":"IF(calc1,IF(ISNUMBER(AW73),IF(COUNT(AW$1:AW73)=1,1,IF(COUNT(AW$1:AW73)<COUNT(AW:AW),IF(AH73=MAX(AH$1:AH72),2,3),4))))","v":false},false,false,false,false,false,false,false,false,false,false,false,false,false,false,null,null,null,0,0,0,{"$error":"#N/A"},{"$error":"#N/A"},0,0,0,{"$error":"#N/A"}]
["smtp_cc",null,null,null,null,null,null,null,null,null,null,null,null,null,null,false,false,false,false,false,false,false,false,false,false,false,false,{"$f":"IF(AND(calc1,calc2),IF($Z74>$B$44*($R74*24),deepest(INDEX(cdr,,6),INDEX(cdr,,1),\"=1\",INDEX(cdr,,2),\"\",$Z74,$B$45*$Z74,INDEX(cdr,,4),$S74,$T74),\"\"))","v":false},false,false,false,null,false,false,{"$f":"IF(calc1,IF(ISNUMBER(AW74),IF(COUNT(AW$1:AW74)=1,1,IF(COUNT(AW$1:AW74)<COUNT(AW:AW),IF(AH74=MAX(AH$1:AH73),2,3),4))))","v":false},false,false,false,false,false,false,false,false,false,false,false,false,false,false,null,null,"10:16      Δ2h",0,0,0,{"$error":"#N/A"},{"$error":"#N/A"},0,0,0,0]
["smtp_cc",null,null,null,null,null,null,null,null,null,null,null,null,null,null,false,false,false,false,false,false,false,false,false,false,false,false,{"$f":"IF(AND(calc1,calc2),IF($Z75>$B$44*($R75*24),deepest(INDEX(cdr,,6),INDEX(cdr,,1),\"=1\",INDEX(cdr,,2),\"\",$Z75,$B$45*$Z75,INDEX(cdr,,4),$S75,$T75),\"\"))","v":false},false,false,false,null,false,false,{"$f":"IF(calc1,IF(ISNUMBER(AW75),IF(COUNT(AW$1:AW75)=1,1,IF(COUNT(AW$1:AW75)<COUNT(AW:AW),IF(AH75=MAX(AH$1:AH74),2,3),4))))","v":false},false,false,false,false,false,false,false,false,false,false,false,false,false,false,null,null,null,0,0,0,{"$error":"#N/A"},{"$error":"#N/A"},0,0,0,{"$error":"#N/A"}]
["smtp_bcc","You <you@private.com>",null,null,null,null,null,null,null,null,null,null,null,null,null,false,false,false,false,false,false,false,false,false,false,false,false,{"$f":"IF(AND(calc1,calc2),IF($Z76>$B$44*($R76*24),deepest(INDEX(cdr,,6),INDEX(cdr,,1),\"=1\",INDEX(cdr,,2),\"\",$Z76,$B$45*$Z76,INDEX(cdr,,4),$S76,$T76),\"\"))","v":false},false,false,false,null,false,false,{"$f":"IF(calc1,IF(ISNUMBER(AW76),IF(COUNT(AW$1:AW76)=1,1,IF(COUNT(AW$1:AW76)<COUNT(AW:AW),IF(AH76=MAX(AH$1:AH75),2,3),4))))","v":false},false,false,false,false,false,false,false,false,false,false,false,false,false,false,null,null,"14:54      Δ2h",0,0,0,{"$error":"#N/A"},{"$error":"#N/A"},0,0,0,0]
["smtp_bcc","He <you@private.com>",null,null,null,null,null,null,null,null,null,null,null,null,null,false,false,false,false,false,false,false,false,false,false,false,false,{"$f":"IF(AND(calc1,calc2),IF($Z77>$B$44*($R77*24),deepest(INDEX(cdr,,6),INDEX(cdr,,1),\"=1\",INDEX(cdr,,2),\"\",$Z77,$B$45*$Z77,INDEX(cdr,,4),$S77,$T77),\"\"))","v":false},false,false,false,null,false,false,{"$f":"IF(calc1,IF(ISNUMBER(AW77),IF(COUNT(AW$1:AW77)=1,1,IF(COUNT(AW$1:AW77)<COUNT(AW:AW),IF(AH77=MAX(AH$1:AH76),2,3),4))))","v":false},false,false,false,false,false,false,false,false,false,false,false,false,false,false,null,null,null,0,0,0,{"$error":"#N/A"},{"$error":"#N/A"},0,0,0,{"$error":"#N/A"}]
["smtp_bcc","She <you@private.com>",null,null,null,null,null,null,null,null,null,null,null,null,null,false,false,false,false,false,false,false,false,false,false,false,false,{"$f":"IF(AND(calc1,calc2),IF($Z78>$B$44*($R78*24),deepest(INDEX(cdr,,6),INDEX(cdr,,1),\"=1\",INDEX(cdr,,2),\"\",$Z78,$B$45*$Z78,INDEX(cdr,,4),$S78,$T78),\"\"))","v":false},false,false,false,null,false,false,{"$f":"IF(calc1,IF(ISNUMBER(AW78),IF(COUNT(AW$1:AW78)=1,1,IF(COUNT(AW$1:AW78)<COUNT(AW:AW),IF(AH78=MAX(AH$1:AH77),2,3),4))))","v":false},false,false,false,false,false,false,false,false,false,false,false,false,false,false,null,null,"19:11      Δ2h",0,0,0,{"$error":"#N/A"},{"$error":"#N/A"},0,0,0,0]
["smtp_bcc",null,null,null,null,null,null,null,null,null,null,null,null,null,null,false,false,false,false,false,false,false,false,false,false,false,false,{"$f":"IF(AND(calc1,calc2),IF($Z79>$B$44*($R79*24),deepest(INDEX(cdr,,6),INDEX(cdr,,1),\"=1\",INDEX(cdr,,2),\"\",$Z79,$B$45*$Z79,INDEX(cdr,,4),$S79,$T79),\"\"))","v":false},false,false,false,null,false,false,{"$f":"IF(calc1,IF(ISNUMBER(AW79),IF(COUNT(AW$1:AW79)=1,1,IF(COUNT(AW$1:AW79)<COUNT(AW:AW),IF(AH79=MAX(AH$1:AH78),2,3),4))))","v":false},false,false,false,false,false,false,false,false,false,false,false,false,false,false,null,null,null,0,0,0,{"$error":"#N/A"},{"$error":"#N/A"},0,0,0,{"$error":"#N/A"}]
["smtp_bcc",null,null,null,null,null,null,null,null,null,null,null,null,null,null,false,false,false,false,false,false,false,false,false,false,false,false,{"$f":"IF(AND(calc1,calc2),IF($Z80>$B$44*($R80*24),deepest(INDEX(cdr,,6),INDEX(cdr,,1),\"=1\",INDEX(cdr,,2),\"\",$Z80,$B$45*$Z80,INDEX(cdr,,4),$S80,$T80),\"\"))","v":false},false,false,false,null,false,false,{"$f":"IF(calc1,IF(ISNUMBER(AW80),IF(COUNT(AW$1:AW80)=1,1,IF(COUNT(AW$1:AW80)<COUNT(AW:AW),IF(AH80=MAX(AH$1:AH79),2,3),4))))","v":false},false,false,false,false,false,false,false,false,false,false,false,false,false,false,null,null,"23:10      Δ2h",0,0,0,{"$error":"#N/A"},{"$error":"#N/A"},0,0,0,0]
["smtp_bcc",null,null,null,null,null,null,null,null,null,null,null,null,null,null,false,false,false,false,false,false,false,false,false,false,false,false,{"$f":"IF(AND(calc1,calc2),IF($Z81>$B$44*($R81*24),deepest(INDEX(cdr,,6),INDEX(cdr,,1),\"=1\",INDEX(cdr,,2),\"\",$Z81,$B$45*$Z81,INDEX(cdr,,4),$S81,$T81),\"\"))","v":false},false,false,false,null,false,false,{"$f":"IF(calc1,IF(ISNUMBER(AW81),IF(COUNT(AW$1:AW81)=1,1,IF(COUNT(AW$1:AW81)<COUNT(AW:AW),IF(AH81=MAX(AH$1:AH80),2,3),4))))","v":false},false,false,false,false,false,false,false,false,false,false,false,false,false,false,null,null,null,0,0,0,{"$error":"#N/A"},{"$error":"#N/A"},0,0,0,{"$error":"#N/A"}]
["smtp_bcc",null,null,null,null,null,null,null,null,null,null,null,null,null,null,false,false,false,false,false,false,false,false,false,false,false,false,{"$f":"IF(AND(calc1,calc2),IF($Z82>$B$44*($R82*24),deepest(INDEX(cdr,,6),INDEX(cdr,,1),\"=1\",INDEX(cdr,,2),\"\",$Z82,$B$45*$Z82,INDEX(cdr,,4),$S82,$T82),\"\"))","v":false},false,false,false,null,false,false,{"$f":"IF(calc1,IF(ISNUMBER(AW82),IF(COUNT(AW$1:AW82)=1,1,IF(COUNT(AW$1:AW82)<COUNT(AW:AW),IF(AH82=MAX(AH$1:AH81),2,3),4))))","v":false},false,false,false,false,false,false,false,false,false,false,false,false,false,false,null,null,"→  Oct 30 Wednesday 02:52      Δ2h",0,0,0,{"$error":"#N/A"},{"$error":"#N/A"},0,0,0,0]
["smtp_bcc",null,null,null,null,null,null,null,null,null,null,null,null,null,null,false,false,false,false,false,false,false,false,false,false,false,false,{"$f":"IF(AND(calc1,calc2),IF($Z83>$B$44*($R83*24),deepest(INDEX(cdr,,6),INDEX(cdr,,1),\"=1\",INDEX(cdr,,2),\"\",$Z83,$B$45*$Z83,INDEX(cdr,,4),$S83,$T83),\"\"))","v":false},false,false,false,null,false,false,{"$f":"IF(calc1,IF(ISNUMBER(AW83),IF(COUNT(AW$1:AW83)=1,1,IF(COUNT(AW$1:AW83)<COUNT(AW:AW),IF(AH83=MAX(AH$1:AH82),2,3),4))))","v":false},false,false,false,false,false,false,false,false,false,false,false,false,false,false,null,null,null,0,0,0,{"$error":"#N/A"},{"$error":"#N/A"},0,0,0,{"$error":"#N/A"}]
["smtp_bcc",null,null,null,null,null,null,null,null,null,null,null,null,null,null,false,false,false,false,false,false,false,false,false,false,false,false,{"$f":"IF(AND(calc1,calc2),IF($Z84>$B$44*($R84*24),deepest(INDEX(cdr,,6),INDEX(cdr,,1),\"=1\",INDEX(cdr,,2),\"\",$Z84,$B$45*$Z84,INDEX(cdr,,4),$S84,$T84),\"\"))","v":false},false,false,false,null,false,false,{"$f":"IF(calc1,IF(ISNUMBER(AW84),IF(COUNT(AW$1:AW84)=1,1,IF(COUNT(AW$1:AW84)<COUNT(AW:AW),IF(AH84=MAX(AH$1:AH83),2,3),4))))","v":false},false,false,false,false,false,false,false,false,false,false,false,false,false,false,null,null,"06:18      Δ2h",0,0,0,{"$error":"#N/A"},{"$error":"#N/A"},0,0,0,0]
["smtp_bcc",null,null,null,null,null,null,null,null,null,null,null,null,null,null,false,false,false,false,false,false,false,false,false,false,false,false,{"$f":"IF(AND(calc1,calc2),IF($Z85>$B$44*($R85*24),deepest(INDEX(cdr,,6),INDEX(cdr,,1),\"=1\",INDEX(cdr,,2),\"\",$Z85,$B$45*$Z85,INDEX(cdr,,4),$S85,$T85),\"\"))","v":false},false,false,false,null,false,false,{"$f":"IF(calc1,IF(ISNUMBER(AW85),IF(COUNT(AW$1:AW85)=1,1,IF(COUNT(AW$1:AW85)<COUNT(AW:AW),IF(AH85=MAX(AH$1:AH84),2,3),4))))","v":false},false,false,false,false,false,false,false,false,false,false,false,false,false,false,null,null,null,0,0,0,{"$error":"#N/A"},{"$error":"#N/A"},0,0,0,{"$error":"#N/A"}]
["smtp_bcc",null,null,null,null,null,null,null,null,null,null,null,null,null,null,false,false,false,false,false,false,false,false,false,false,false,false,{"$f":"IF(AND(calc1,calc2),IF($Z86>$B$44*($R86*24),deepest(INDEX(cdr,,6),INDEX(cdr,,1),\"=1\",INDEX(cdr,,2),\"\",$Z86,$B$45*$Z86,INDEX(cdr,,4),$S86,$T86),\"\"))","v":false},false,false,false,null,false,false,{"$f":"IF(calc1,IF(ISNUMBER(AW86),IF(COUNT(AW$1:AW86)=1,1,IF(COUNT(AW$1:AW86)<COUNT(AW:AW),IF(AH86=MAX(AH$1:AH85),2,3),4))))","v":false},false,false,false,false,false,false,false,false,false,false,false,false,false,false,null,null,"09:28      Δ2h",0,0,0,{"$error":"#N/A"},{"$error":"#N/A"},0,0,0,0]
["smtp_bcc",null,null,null,null,null,null,null,null,null,null,null,null,null,null,false,false,false,false,false,false,false,false,false,false,false,false,{"$f":"IF(AND(calc1,calc2),IF($Z87>$B$44*($R87*24),deepest(INDEX(cdr,,6),INDEX(cdr,,1),\"=1\",INDEX(cdr,,2),\"\",$Z87,$B$45*$Z87,INDEX(cdr,,4),$S87,$T87),\"\"))","v":false},false,false,false,null,false,false,{"$f":"IF(calc1,IF(ISNUMBER(AW87),IF(COUNT(AW$1:AW87)=1,1,IF(COUNT(AW$1:AW87)<COUNT(AW:AW),IF(AH87=MAX(AH$1:AH86),2,3),4))))","v":false},false,false,false,false,false,false,false,false,false,false,false,false,false,false,null,null,null,0,0,0,{"$error":"#N/A"},{"$error":"#N/A"},0,0,0,{"$error":"#N/A"}]
["smtp_receipt","Emin Gabrielyan <emin.gabrielyan@switzernet.com>",null,null,null,null,null,null,null,null,null,null,null,null,null,false,false,false,false,false,false,false,false,false,false,false,false,{"$f":"IF(AND(calc1,calc2),IF($Z88>$B$44*($R88*24),deepest(INDEX(cdr,,6),INDEX(cdr,,1),\"=1\",INDEX(cdr,,2),\"\",$Z88,$B$45*$Z88,INDEX(cdr,,4),$S88,$T88),\"\"))","v":false},false,false,false,null,false,false,{"$f":"IF(calc1,IF(ISNUMBER(AW88),IF(COUNT(AW$1:AW88)=1,1,IF(COUNT(AW$1:AW88)<COUNT(AW:AW),IF(AH88=MAX(AH$1:AH87),2,3),4))))","v":false},false,false,false,false,false,false,false,false,false,false,false,false,false,false,null,null,"12:25      Δ1h",0,0,0,{"$error":"#N/A"},{"$error":"#N/A"},0,0,0,0]
["smtp_subject","[1'dap'1 cost monitor]",null,null,null,null,null,null,null,null,null,null,null,null,null,false,false,false,false,false,false,false,false,false,false,false,false,{"$f":"IF(AND(calc1,calc2),IF($Z89>$B$44*($R89*24),deepest(INDEX(cdr,,6),INDEX(cdr,,1),\"=1\",INDEX(cdr,,2),\"\",$Z89,$B$45*$Z89,INDEX(cdr,,4),$S89,$T89),\"\"))","v":false},false,false,false,null,false,false,{"$f":"IF(calc1,IF(ISNUMBER(AW89),IF(COUNT(AW$1:AW89)=1,1,IF(COUNT(AW$1:AW89)<COUNT(AW:AW),IF(AH89=MAX(AH$1:AH88),2,3),4))))","v":false},false,false,false,false,false,false,false,false,false,false,false,false,false,false,null,null,null,0,0,0,{"$error":"#N/A"},{"$error":"#N/A"},0,0,0,{"$error":"#N/A"}]
[null,null,null,null,null,null,null,null,null,null,null,null,null,null,null,false,false,false,false,false,false,false,false,false,false,false,false,{"$f":"IF(AND(calc1,calc2),IF($Z90>$B$44*($R90*24),deepest(INDEX(cdr,,6),INDEX(cdr,,1),\"=1\",INDEX(cdr,,2),\"\",$Z90,$B$45*$Z90,INDEX(cdr,,4),$S90,$T90),\"\"))","v":false},false,false,false,null,false,false,{"$f":"IF(calc1,IF(ISNUMBER(AW90),IF(COUNT(AW$1:AW90)=1,1,IF(COUNT(AW$1:AW90)<COUNT(AW:AW),IF(AH90=MAX(AH$1:AH89),2,3),4))))","v":false},false,false,false,false,false,false,false,false,false,false,false,false,false,false,null,null,"15:10      Δ1h",0,0,0,{"$error":"#N/A"},{"$error":"#N/A"},0,0,0,0]
["smtp server","smtp.mail.yahoo.com",null,null,null,null,null,null,null,null,null,null,null,null,null,false,false,false,false,false,false,false,false,false,false,false,false,{"$f":"IF(AND(calc1,calc2),IF($Z91>$B$44*($R91*24),deepest(INDEX(cdr,,6),INDEX(cdr,,1),\"=1\",INDEX(cdr,,2),\"\",$Z91,$B$45*$Z91,INDEX(cdr,,4),$S91,$T91),\"\"))","v":false},false,false,false,null,false,false,{"$f":"IF(calc1,IF(ISNUMBER(AW91),IF(COUNT(AW$1:AW91)=1,1,IF(COUNT(AW$1:AW91)<COUNT(AW:AW),IF(AH91=MAX(AH$1:AH90),2,3),4))))","v":false},false,false,false,false,false,false,false,false,false,false,false,false,false,false,null,null,null,86.719697374769339,0,36.80090314338419,{"$error":"#N/A"},813.62275449101787,1121.6614511021162,1467.0911485726742,4033.9490217956236,{"$error":"#N/A"}]
["smtp port",25,null,null,null,null,null,null,null,null,null,null,null,null,null,false,false,false,false,false,false,false,false,false,false,false,false,{"$f":"IF(AND(calc1,calc2),IF($Z92>$B$44*($R92*24),deepest(INDEX(cdr,,6),INDEX(cdr,,1),\"=1\",INDEX(cdr,,2),\"\",$Z92,$B$45*$Z92,INDEX(cdr,,4),$S92,$T92),\"\"))","v":false},false,false,false,null,false,false,{"$f":"IF(calc1,IF(ISNUMBER(AW92),IF(COUNT(AW$1:AW92)=1,1,IF(COUNT(AW$1:AW92)<COUNT(AW:AW),IF(AH92=MAX(AH$1:AH91),2,3),4))))","v":false},false,false,false,false,false,false,false,false,false,false,false,false,false,false,null,null,"17:42      Δ1h",82.581716897279264,0,62.367511397231503,{"$error":"#N/A"},872.8678537956888,1184.9746358112741,1423.6058915845456,4075.7400321769269,0]
["smtp authenticate",1,null,null,null,null,null,null,null,null,null,null,null,null,null,false,false,false,false,false,false,false,false,false,false,false,false,{"$f":"IF(AND(calc1,calc2),IF($Z93>$B$44*($R93*24),deepest(INDEX(cdr,,6),INDEX(cdr,,1),\"=1\",INDEX(cdr,,2),\"\",$Z93,$B$45*$Z93,INDEX(cdr,,4),$S93,$T93),\"\"))","v":false},false,false,false,null,false,false,{"$f":"IF(calc1,IF(ISNUMBER(AW93),IF(COUNT(AW$1:AW93)=1,1,IF(COUNT(AW$1:AW93)<COUNT(AW:AW),IF(AH93=MAX(AH$1:AH92),2,3),4))))","v":false},false,false,false,false,false,false,false,false,false,false,false,false,false,false,null,null,null,102.39513788418802,0,76.089023100034339,{"$error":"#N/A"},844.55709711846316,1133.9845781541244,1507.732304287319,5311.2666447911388,{"$error":"#N/A"}]
["smtp ssl",true,null,null,null,null,null,null,null,null,null,null,null,null,null,false,false,false,false,false,false,false,false,false,false,false,false,{"$f":"IF(AND(calc1,calc2),IF($Z94>$B$44*($R94*24),deepest(INDEX(cdr,,6),INDEX(cdr,,1),\"=1\",INDEX(cdr,,2),\"\",$Z94,$B$45*$Z94,INDEX(cdr,,4),$S94,$T94),\"\"))","v":false},false,false,false,null,false,false,{"$f":"IF(calc1,IF(ISNUMBER(AW94),IF(COUNT(AW$1:AW94)=1,1,IF(COUNT(AW$1:AW94)<COUNT(AW:AW),IF(AH94=MAX(AH$1:AH93),2,3),4))))","v":false},false,false,false,false,false,false,false,false,false,false,false,false,false,false,null,null,"20:03      Δ1h",81.221668071020602,0,65.391100103763321,{"$error":"#N/A"},864.03726708074532,1024.4547125855834,1384.5571581859676,5829.5588602640837,0]
["smtp user","d9a.monitor@yahoo.com",null,null,null,null,null,null,null,null,null,null,null,null,null,false,false,false,false,false,false,false,false,false,false,false,false,{"$f":"IF(AND(calc1,calc2),IF($Z95>$B$44*($R95*24),deepest(INDEX(cdr,,6),INDEX(cdr,,1),\"=1\",INDEX(cdr,,2),\"\",$Z95,$B$45*$Z95,INDEX(cdr,,4),$S95,$T95),\"\"))","v":false},false,false,false,null,false,false,{"$f":"IF(calc1,IF(ISNUMBER(AW95),IF(COUNT(AW$1:AW95)=1,1,IF(COUNT(AW$1:AW95)<COUNT(AW:AW),IF(AH95=MAX(AH$1:AH94),2,3),4))))","v":false},false,false,false,false,false,false,false,false,false,false,false,false,false,false,null,null,null,89.656657348875413,0,39.454181736402219,{"$error":"#N/A"},883.38870431893679,816.39271889940051,936.94416711071403,5369.2546855929768,{"$error":"#N/A"}]
["smtp password","****",null,null,null,null,null,null,null,null,null,null,null,null,null,false,false,false,false,false,false,false,false,false,false,false,false,{"$f":"IF(AND(calc1,calc2),IF($Z96>$B$44*($R96*24),deepest(INDEX(cdr,,6),INDEX(cdr,,1),\"=1\",INDEX(cdr,,2),\"\",$Z96,$B$45*$Z96,INDEX(cdr,,4),$S96,$T96),\"\"))","v":false},false,false,false,null,false,false,{"$f":"IF(calc1,IF(ISNUMBER(AW96),IF(COUNT(AW$1:AW96)=1,1,IF(COUNT(AW$1:AW96)<COUNT(AW:AW),IF(AH96=MAX(AH$1:AH95),2,3),4))))","v":false},false,false,false,false,false,false,false,false,false,false,false,false,false,false,null,null,"22:14      Δ1h",81.906730730059166,0,66.685167375683605,{"$error":"#N/A"},813.73456790123453,464.19270958759051,415.08017034794784,4420.3820156413367,0]
["smtp from","d9a Monitor Yahoo.com <d9a.monitor@yahoo.com>",null,null,null,null,null,null,null,null,null,null,null,null,null,false,false,false,false,false,false,false,false,false,false,false,false,{"$f":"IF(AND(calc1,calc2),IF($Z97>$B$44*($R97*24),deepest(INDEX(cdr,,6),INDEX(cdr,,1),\"=1\",INDEX(cdr,,2),\"\",$Z97,$B$45*$Z97,INDEX(cdr,,4),$S97,$T97),\"\"))","v":false},false,false,false,null,false,false,{"$f":"IF(calc1,IF(ISNUMBER(AW97),IF(COUNT(AW$1:AW97)=1,1,IF(COUNT(AW$1:AW97)<COUNT(AW:AW),IF(AH97=MAX(AH$1:AH96),2,3),4))))","v":false},false,false,false,false,false,false,false,false,false,false,false,false,false,false,null,null,null,30.207121797546378,0,28.31578302853308,{"$error":"#N/A"},876.97368421052636,220.40469808883233,152.96743971836872,2657.9161778333414,{"$error":"#N/A"}]
[null,null,null,null,null,null,null,null,null,null,null,null,null,null,null,false,false,false,false,{"$f":"IF(calc1,IF(P98=MAX(P:P),\">0\",\"<\"&(Q98+R98)))","v":false},false,false,{"$f":"IF(calc1,COUNTIFS(INDEX(cdr,,1),\"=1\",INDEX(cdr,,4),$S98,INDEX(cdr,,4),$T98,INDEX(cdr,,8),\">=\"&$B$43))","v":false},false,false,false,false,{"$f":"IF(AND(calc1,calc2),IF($Z98>$B$44*($R98*24),deepest(INDEX(cdr,,6),INDEX(cdr,,1),\"=1\",INDEX(cdr,,2),\"\",$Z98,$B$45*$Z98,INDEX(cdr,,4),$S98,$T98),\"\"))","v":false},false,false,{"$f":"IF(AND(calc1,calc2),IF(LEN($AB98)>=$B$46,ROUND(AC98/(R98*24),4)/ROUND(SUMIF(INDEX(cdr,,2),\"=\"&AB98&\"*\",INDEX(cdr,,6))/($B$37*24),4)))","v":false},null,false,false,{"$f":"IF(calc1,IF(ISNUMBER(AW98),IF(COUNT(AW$1:AW98)=1,1,IF(COUNT(AW$1:AW98)<COUNT(AW:AW),IF(AH98=MAX(AH$1:AH97),2,3),4))))","v":false},false,false,{"$f":"IF(calc1,REPT(\" \",3*(MAX(AK:AK)-AK98+1))&AJ98)","v":false},false,{"$f":"IF(calc1,IF(AI98,CHOOSE(AI98,\"↑  \"&TEXT($B$35+time_zone/24,\"yyyy mmm d dddd hh:mm\")&AL98,TEXT(AG98,\"hh:mm\")&AL98,\"→  \"&TEXT(AG98,\"mmm d dddd hh:mm\")&AL98,\"↓  \"&TEXT($B$36+time_zone/24,\"yyyy mmm d dddd hh:mm\")&AL98),\"\"))","v":false},{"$f":"IF(calc1,($Z98-IF(calc2,IF($AE98,IF($AE98>$B$47,$AC98,0),0),0))/(24*$R98))","v":false},{"$f":"IF(calc1,IF(calc2,IF($AE98,IF($AE98>$B$47,$AC98,0),0),0)/(24*$R98))","v":false},false,false,{"$f":"IF(calc1,IF(V98,X98/V98/1000*$B$49,NA()))","v":false},{"$f":"IF(calc1,$W98/($R98*24*60)*$B$50)","v":false},{"$f":"IF(calc1,($U98-$W98)/($R98*24*60)*$B$50)","v":false},false,{"$f":"IF(calc1,IF(MOD(ROW()-1,$B$54),0,NA()))","v":false},null,null,"→  Oct 31 Thursday 00:16   Δ59m",9.4367032931342241,0,6.692384396907288,{"$error":"#N/A"},840.35087719298235,93.921299520418245,83.675339572736249,1192.6809677099222,0]
["smtp server","smtp.googlemail.com",null,null,null,null,null,null,null,null,null,null,null,null,null,false,false,{"$f":"IF(calc1,R98/$B$40)","v":false},false,false,false,false,false,false,false,false,false,{"$f":"IF(AND(calc1,calc2),IF($Z99>$B$44*($R99*24),deepest(INDEX(cdr,,6),INDEX(cdr,,1),\"=1\",INDEX(cdr,,2),\"\",$Z99,$B$45*$Z99,INDEX(cdr,,4),$S99,$T99),\"\"))","v":false},false,false,false,null,false,false,{"$f":"IF(calc1,IF(ISNUMBER(AW99),IF(COUNT(AW$1:AW99)=1,1,IF(COUNT(AW$1:AW99)<COUNT(AW:AW),IF(AH99=MAX(AH$1:AH98),2,3),4))))","v":false},false,false,false,false,false,false,false,false,false,false,false,false,false,false,null,null,null,19.353382896696282,0,13.59005935259724,{"$error":"#N/A"},812.90322580645159,51.414398059189651,40.776936391771102,822.96722189983609,{"$error":"#N/A"}]
["smtp port",25,null,null,null,null,null,null,null,null,null,null,null,null,null,false,false,false,false,false,false,false,false,false,false,false,false,{"$f":"IF(AND(calc1,calc2),IF($Z100>$B$44*($R100*24),deepest(INDEX(cdr,,6),INDEX(cdr,,1),\"=1\",INDEX(cdr,,2),\"\",$Z100,$B$45*$Z100,INDEX(cdr,,4),$S100,$T100),\"\"))","v":false},false,false,false,null,false,false,{"$f":"IF(calc1,IF(ISNUMBER(AW100),IF(COUNT(AW$1:AW100)=1,1,IF(COUNT(AW$1:AW100)<COUNT(AW:AW),IF(AH100=MAX(AH$1:AH99),2,3),4))))","v":false},false,false,false,false,false,false,false,false,false,false,false,false,false,false,null,null,"02:09   Δ54m",2.3258280548971997,0,4.8471887630577477,{"$error":"#N/A"},644.11764705882354,31.291114614298642,11.043922805046581,355.96403854465973,0]
["smtp authenticate",1,null,null,null,null,null,null,null,null,null,null,null,null,null,false,false,false,false,false,false,false,false,false,false,false,false,{"$f":"IF(AND(calc1,calc2),IF($Z101>$B$44*($R101*24),deepest(INDEX(cdr,,6),INDEX(cdr,,1),\"=1\",INDEX(cdr,,2),\"\",$Z101,$B$45*$Z101,INDEX(cdr,,4),$S101,$T101),\"\"))","v":false},false,false,false,null,false,false,{"$f":"IF(calc1,IF(ISNUMBER(AW101),IF(COUNT(AW$1:AW101)=1,1,IF(COUNT(AW$1:AW101)<COUNT(AW:AW),IF(AH101=MAX(AH$1:AH100),2,3),4))))","v":false},false,false,false,false,false,false,false,false,false,false,false,false,false,false,null,null,null,0,0,0.54577755234187442,{"$error":"#N/A"},950,1.9109858275275715,5.7329574825827141,109.15551046837487,{"$error":"#N/A"}]
["smtp ssl",true,null,null,null,null,null,null,null,null,null,null,null,null,null,false,false,false,false,false,false,false,false,false,false,false,false,{"$f":"IF(AND(calc1,calc2),IF($Z102>$B$44*($R102*24),deepest(INDEX(cdr,,6),INDEX(cdr,,1),\"=1\",INDEX(cdr,,2),\"\",$Z102,$B$45*$Z102,INDEX(cdr,,4),$S102,$T102),\"\"))","v":false},false,false,false,null,false,false,{"$f":"IF(calc1,IF(ISNUMBER(AW102),IF(COUNT(AW$1:AW102)=1,1,IF(COUNT(AW$1:AW102)<COUNT(AW:AW),IF(AH102=MAX(AH$1:AH101),2,3),4))))","v":false},false,false,false,false,false,false,false,false,false,false,false,false,false,false,null,null,"03:53   Δ50m",1.4797901673987333,0,2.0168167446802001,{"$error":"#N/A"},833.33333333333337,9.9200263279887189,27.776073718368416,95.351293064627569,0]
["smtp user","d9a.monitor@gmail.com",null,null,null,null,null,null,null,null,null,null,null,null,null,false,false,false,false,false,false,false,false,false,false,false,false,{"$f":"IF(AND(calc1,calc2),IF($Z103>$B$44*($R103*24),deepest(INDEX(cdr,,6),INDEX(cdr,,1),\"=1\",INDEX(cdr,,2),\"\",$Z103,$B$45*$Z103,INDEX(cdr,,4),$S103,$T103),\"\"))","v":false},false,false,false,null,false,false,{"$f":"IF(calc1,IF(ISNUMBER(AW103),IF(COUNT(AW$1:AW103)=1,1,IF(COUNT(AW$1:AW103)<COUNT(AW:AW),IF(AH103=MAX(AH$1:AH102),2,3),4))))","v":false},false,false,false,false,false,false,false,false,false,false,false,false,false,false,null,null,null,0.92287530425051956,0,0.56513490870145167,{"$error":"#N/A"},1118.75,14.418703613875691,26.777592425769143,48.817610806979125,{"$error":"#N/A"}]
["smtp password","****",null,null,null,null,null,null,null,null,null,null,null,null,null,false,false,false,false,false,false,false,false,false,false,false,false,{"$f":"IF(AND(calc1,calc2),IF($Z104>$B$44*($R104*24),deepest(INDEX(cdr,,6),INDEX(cdr,,1),\"=1\",INDEX(cdr,,2),\"\",$Z104,$B$45*$Z104,INDEX(cdr,,4),$S104,$T104),\"\"))","v":false},false,false,false,null,false,false,{"$f":"IF(calc1,IF(ISNUMBER(AW104),IF(COUNT(AW$1:AW104)=1,1,IF(COUNT(AW$1:AW104)<COUNT(AW:AW),IF(AH104=MAX(AH$1:AH103),2,3),4))))","v":false},false,false,false,false,false,false,false,false,false,false,false,false,false,false,null,null,"05:31   Δ47m",23.488929228944201,0,9.387226327042633,{"$error":"#N/A"},959.25925925925935,55.601547230197589,62.01711037214347,176.14997866736059,0]
["smtp from","d9a Monitor Gmail.com <d9a.monitor@gmail.com>",null,null,null,null,null,null,null,null,null,null,null,null,null,false,false,false,false,false,false,false,false,false,false,false,false,{"$f":"IF(AND(calc1,calc2),IF($Z105>$B$44*($R105*24),deepest(INDEX(cdr,,6),INDEX(cdr,,1),\"=1\",INDEX(cdr,,2),\"\",$Z105,$B$45*$Z105,INDEX(cdr,,4),$S105,$T105),\"\"))","v":false},false,false,false,null,false,false,{"$f":"IF(calc1,IF(ISNUMBER(AW105),IF(COUNT(AW$1:AW105)=1,1,IF(COUNT(AW$1:AW105)<COUNT(AW:AW),IF(AH105=MAX(AH$1:AH104),2,3),4))))","v":false},false,false,false,false,false,false,false,false,false,false,false,false,false,false,null,null,null,20.051942994086996,0,16.776461845322157,{"$error":"#N/A"},902.32558139534888,88.80938743443248,124.33314240820546,263.96370180199193,{"$error":"#N/A"}]
[null,null,null,null,null,null,null,null,null,null,null,null,null,null,null,false,false,false,false,false,false,false,false,false,false,false,false,{"$f":"IF(AND(calc1,calc2),IF($Z106>$B$44*($R106*24),deepest(INDEX(cdr,,6),INDEX(cdr,,1),\"=1\",INDEX(cdr,,2),\"\",$Z106,$B$45*$Z106,INDEX(cdr,,4),$S106,$T106),\"\"))","v":false},false,false,false,null,false,false,{"$f":"IF(calc1,IF(ISNUMBER(AW106),IF(COUNT(AW$1:AW106)=1,1,IF(COUNT(AW$1:AW106)<COUNT(AW:AW),IF(AH106=MAX(AH$1:AH105),2,3),4))))","v":false},false,false,false,false,false,false,false,false,false,false,false,false,false,false,null,null,"07:01   Δ43m",17.932140230362521,0,13.70451160884647,{"$error":"#N/A"},807.60869565217388,191.32086238687981,163.66001481287307,477.63368548416099,0]
["smtp server","smtp.switzernet.com",null,null,null,null,null,null,null,null,null,null,null,null,null,false,false,false,false,false,{"$f":"IF(calc1,COUNTIFS(INDEX(cdr,,4),$S107,INDEX(cdr,,4),$T107))","v":false},{"$f":"IF(calc1,COUNTIFS(INDEX(cdr,,1),\"=1\",INDEX(cdr,,4),$S107,INDEX(cdr,,4),$T107))","v":false},false,{"$f":"IF(calc1,SUMIFS(INDEX(cdr,,3),INDEX(cdr,,1),\"=1\",INDEX(cdr,,4),$S107,INDEX(cdr,,4),$T107))","v":false},{"$f":"IF(calc1,SUMIFS(INDEX(cdr,,5),INDEX(cdr,,1),\"=1\",INDEX(cdr,,4),$S107,INDEX(cdr,,4),$T107))","v":false},{"$f":"IF(calc1,SUMIFS(INDEX(cdr,,6),INDEX(cdr,,1),\"=1\",INDEX(cdr,,4),$S107,INDEX(cdr,,4),$T107))","v":false},{"$f":"IF(calc1,SUMIFS(INDEX(cdr,,8),INDEX(cdr,,1),\"=1\",INDEX(cdr,,4),$S107,INDEX(cdr,,4),$T107))","v":false},{"$f":"IF(AND(calc1,calc2),IF($Z107>$B$44*($R107*24),deepest(INDEX(cdr,,6),INDEX(cdr,,1),\"=1\",INDEX(cdr,,2),\"\",$Z107,$B$45*$Z107,INDEX(cdr,,4),$S107,$T107),\"\"))","v":false},false,false,false,null,false,false,{"$f":"IF(calc1,IF(ISNUMBER(AW107),IF(COUNT(AW$1:AW107)=1,1,IF(COUNT(AW$1:AW107)<COUNT(AW:AW),IF(AH107=MAX(AH$1:AH106),2,3),4))))","v":false},false,false,false,false,false,false,false,false,false,false,false,false,false,false,null,null,null,17.606999076327206,0,10.192958982776551,{"$error":"#N/A"},820.51282051282044,241.707966954661,294.35722708339904,466.73569104126267,{"$error":"#N/A"}]
["smtp port",587,null,null,null,null,null,null,null,null,null,null,null,null,null,false,false,false,false,false,false,false,false,false,false,false,false,{"$f":"IF(AND(calc1,calc2),IF($Z108>$B$44*($R108*24),deepest(INDEX(cdr,,6),INDEX(cdr,,1),\"=1\",INDEX(cdr,,2),\"\",$Z108,$B$45*$Z108,INDEX(cdr,,4),$S108,$T108),\"\"))","v":false},false,false,false,null,false,false,{"$f":"IF(calc1,IF(ISNUMBER(AW108),IF(COUNT(AW$1:AW108)=1,1,IF(COUNT(AW$1:AW108)<COUNT(AW:AW),IF(AH108=MAX(AH$1:AH107),2,3),4))))","v":false},false,false,false,false,false,false,false,false,false,false,false,false,false,false,null,null,"08:24   Δ40m",48.459800060233277,0,13.038349583697739,{"$error":"#N/A"},745.1388888888888,499.40283491217247,506.85660856757801,1558.9070682037031,0]
["smtp authenticate",1,null,null,null,null,null,null,null,null,null,null,null,null,null,false,false,false,false,false,false,false,false,false,false,false,false,{"$f":"IF(AND(calc1,calc2),IF($Z109>$B$44*($R109*24),deepest(INDEX(cdr,,6),INDEX(cdr,,1),\"=1\",INDEX(cdr,,2),\"\",$Z109,$B$45*$Z109,INDEX(cdr,,4),$S109,$T109),\"\"))","v":false},false,false,false,null,false,false,{"$f":"IF(calc1,IF(ISNUMBER(AW109),IF(COUNT(AW$1:AW109)=1,1,IF(COUNT(AW$1:AW109)<COUNT(AW:AW),IF(AH109=MAX(AH$1:AH108),2,3),4))))","v":false},false,false,false,false,false,false,false,false,false,false,false,false,false,false,null,null,null,44.207394002676921,0,19.080069347750619,{"$error":"#N/A"},791.15044247787614,776.43802417405914,817.7104772863014,2360.8617038698476,{"$error":"#N/A"}]
["smtp ssl",false,null,null,null,null,null,null,null,null,null,null,null,null,null,false,false,false,false,false,false,false,false,false,false,false,false,{"$f":"IF(AND(calc1,calc2),IF($Z110>$B$44*($R110*24),deepest(INDEX(cdr,,6),INDEX(cdr,,1),\"=1\",INDEX(cdr,,2),\"\",$Z110,$B$45*$Z110,INDEX(cdr,,4),$S110,$T110),\"\"))","v":false},false,false,false,null,false,false,{"$f":"IF(calc1,IF(ISNUMBER(AW110),IF(COUNT(AW$1:AW110)=1,1,IF(COUNT(AW$1:AW110)<COUNT(AW:AW),IF(AH110=MAX(AH$1:AH109),2,3),4))))","v":false},false,false,false,false,false,false,false,false,false,false,false,false,false,false,null,null,"09:42   Δ37m",66.744322884297233,0,11.290941857466168,{"$error":"#N/A"},801.68161434977583,1057.8467351810179,1089.9838511865171,3174.5043190232186,0]
["smtp user","d9a.monitor@smtp.switzernet.com",null,null,null,null,null,null,null,null,null,null,null,null,null,false,false,false,false,false,false,false,false,false,false,false,false,{"$f":"IF(AND(calc1,calc2),IF($Z111>$B$44*($R111*24),deepest(INDEX(cdr,,6),INDEX(cdr,,1),\"=1\",INDEX(cdr,,2),\"\",$Z111,$B$45*$Z111,INDEX(cdr,,4),$S111,$T111),\"\"))","v":false},false,false,false,null,false,false,{"$f":"IF(calc1,IF(ISNUMBER(AW111),IF(COUNT(AW$1:AW111)=1,1,IF(COUNT(AW$1:AW111)<COUNT(AW:AW),IF(AH111=MAX(AH$1:AH110),2,3),4))))","v":false},false,false,false,false,false,false,false,false,false,false,false,false,false,false,null,null,null,56.173426213721193,0,23.962988609840458,{"$error":"#N/A"},795.96199524940619,1023.1959850420344,1128.8520921931142,3593.5866381180103,{"$error":"#N/A"}]
["smtp password","****",null,null,null,null,null,null,null,null,null,null,null,null,null,false,false,false,false,false,false,false,false,false,false,false,false,{"$f":"IF(AND(calc1,calc2),IF($Z112>$B$44*($R112*24),deepest(INDEX(cdr,,6),INDEX(cdr,,1),\"=1\",INDEX(cdr,,2),\"\",$Z112,$B$45*$Z112,INDEX(cdr,,4),$S112,$T112),\"\"))","v":false},false,false,false,null,false,false,{"$f":"IF(calc1,IF(ISNUMBER(AW112),IF(COUNT(AW$1:AW112)=1,1,IF(COUNT(AW$1:AW112)<COUNT(AW:AW),IF(AH112=MAX(AH$1:AH111),2,3),4))))","v":false},false,false,false,false,false,false,false,false,false,false,false,false,false,false,null,null,"10:54   Δ35m",64.516699436932271,0,-7.8571264356949815,{"$error":"#N/A"},756.40176600441498,1169.0992613374081,1148.8926074377491,3820.1833863242286,0]
["smtp from","d9a Monitor Switzernet.com <d9a.monitor@switzernet.com>",null,null,null,null,null,null,null,null,null,null,null,null,null,false,false,false,false,false,false,false,false,false,false,false,false,{"$f":"IF(AND(calc1,calc2),IF($Z113>$B$44*($R113*24),deepest(INDEX(cdr,,6),INDEX(cdr,,1),\"=1\",INDEX(cdr,,2),\"\",$Z113,$B$45*$Z113,INDEX(cdr,,4),$S113,$T113),\"\"))","v":false},false,false,false,null,false,false,{"$f":"IF(calc1,IF(ISNUMBER(AW113),IF(COUNT(AW$1:AW113)=1,1,IF(COUNT(AW$1:AW113)<COUNT(AW:AW),IF(AH113=MAX(AH$1:AH112),2,3),4))))","v":false},false,false,false,false,false,false,false,false,false,false,false,false,false,false,null,null,null,70.092053838884524,0,14.824440993674763,{"$error":"#N/A"},749.67248908296938,1174.8104046268957,1369.6131502920696,3990.0397456736323,{"$error":"#N/A"}]
[null,null,null,null,null,null,null,null,null,null,null,null,null,null,null,false,false,false,false,false,false,false,false,false,false,false,false,{"$f":"IF(AND(calc1,calc2),IF($Z114>$B$44*($R114*24),deepest(INDEX(cdr,,6),INDEX(cdr,,1),\"=1\",INDEX(cdr,,2),\"\",$Z114,$B$45*$Z114,INDEX(cdr,,4),$S114,$T114),\"\"))","v":false},false,false,false,null,false,false,{"$f":"IF(calc1,IF(ISNUMBER(AW114),IF(COUNT(AW$1:AW114)=1,1,IF(COUNT(AW$1:AW114)<COUNT(AW:AW),IF(AH114=MAX(AH$1:AH113),2,3),4))))","v":false},false,false,false,false,false,false,false,false,false,false,false,false,false,false,null,null,"12:01   Δ32m",59.637016986604387,0,28.715578919880258,{"$error":"#N/A"},777.99442896935932,995.67373211074857,1042.3459383034401,3373.9649004737857,0]
["schedule_next","2013-10-31T16:13:19",null,null,null,null,null,null,null,null,null,null,null,null,null,false,false,false,false,false,false,false,false,false,false,false,false,{"$f":"IF(AND(calc1,calc2),IF($Z115>$B$44*($R115*24),deepest(INDEX(cdr,,6),INDEX(cdr,,1),\"=1\",INDEX(cdr,,2),\"\",$Z115,$B$45*$Z115,INDEX(cdr,,4),$S115,$T115),\"\"))","v":false},false,false,false,null,false,false,{"$f":"IF(calc1,IF(ISNUMBER(AW115),IF(COUNT(AW$1:AW115)=1,1,IF(COUNT(AW$1:AW115)<COUNT(AW:AW),IF(AH115=MAX(AH$1:AH114),2,3),4))))","v":false},false,false,false,false,false,false,false,false,false,false,false,false,false,false,null,null,null,73.568944652229746,0,32.242043911059767,{"$error":"#N/A"},753.125,752.67648253284801,817.28390592622554,3089.3654681128291,{"$error":"#N/A"}]
["schedule_running",false,null,null,null,null,null,null,null,null,null,null,null,null,null,false,false,false,false,false,false,false,false,false,false,false,false,{"$f":"IF(AND(calc1,calc2),IF($Z116>$B$44*($R116*24),deepest(INDEX(cdr,,6),INDEX(cdr,,1),\"=1\",INDEX(cdr,,2),\"\",$Z116,$B$45*$Z116,INDEX(cdr,,4),$S116,$T116),\"\"))","v":false},false,false,false,null,false,false,{"$f":"IF(calc1,IF(ISNUMBER(AW116),IF(COUNT(AW$1:AW116)=1,1,IF(COUNT(AW$1:AW116)<COUNT(AW:AW),IF(AH116=MAX(AH$1:AH115),2,3),4))))","v":false},false,false,false,false,false,false,false,false,false,false,false,false,false,false,null,null,"13:03   Δ30m",42.190750152962515,0,32.707786634976387,{"$error":"#N/A"},776.63043478260875,801.55934336849896,596.97725154641341,2989.5145083339439,0]
["schedule_interval","00:11:00",null,null,null,null,null,null,null,null,null,null,null,null,null,false,false,false,false,false,false,false,false,false,false,false,false,{"$f":"IF(AND(calc1,calc2),IF($Z117>$B$44*($R117*24),deepest(INDEX(cdr,,6),INDEX(cdr,,1),\"=1\",INDEX(cdr,,2),\"\",$Z117,$B$45*$Z117,INDEX(cdr,,4),$S117,$T117),\"\"))","v":false},false,false,false,null,false,false,{"$f":"IF(calc1,IF(ISNUMBER(AW117),IF(COUNT(AW$1:AW117)=1,1,IF(COUNT(AW$1:AW117)<COUNT(AW:AW),IF(AH117=MAX(AH$1:AH116),2,3),4))))","v":false},false,false,false,false,false,false,false,false,false,false,false,false,false,false,null,null,null,38.832187976286697,0,19.945354605766212,{"$error":"#N/A"},807.51633986928107,877.45261966016756,1138.5992326542648,3015.8951845978331,{"$error":"#N/A"}]
["schedule_reported","2013-10-31T16:01:55",null,null,null,null,null,null,null,null,null,null,null,null,null,false,false,false,false,false,false,false,false,false,false,false,false,{"$f":"IF(AND(calc1,calc2),IF($Z118>$B$44*($R118*24),deepest(INDEX(cdr,,6),INDEX(cdr,,1),\"=1\",INDEX(cdr,,2),\"\",$Z118,$B$45*$Z118,INDEX(cdr,,4),$S118,$T118),\"\"))","v":false},false,false,false,null,false,false,{"$f":"IF(calc1,IF(ISNUMBER(AW118),IF(COUNT(AW$1:AW118)=1,1,IF(COUNT(AW$1:AW118)<COUNT(AW:AW),IF(AH118=MAX(AH$1:AH117),2,3),4))))","v":false},false,false,false,false,false,false,false,false,false,false,false,false,false,false,null,null,"14:00   Δ28m",65.882600798870229,0,92.351786780359774,{"$error":"#N/A"},769.74169741697415,885.67538083170098,976.05041969207844,3253.4290989425067,0]
["schedule_after",0.45833333333333331,null,null,null,null,null,null,null,null,null,null,null,null,null,false,false,false,false,false,false,false,false,false,false,false,false,{"$f":"IF(AND(calc1,calc2),IF($Z119>$B$44*($R119*24),deepest(INDEX(cdr,,6),INDEX(cdr,,1),\"=1\",INDEX(cdr,,2),\"\",$Z119,$B$45*$Z119,INDEX(cdr,,4),$S119,$T119),\"\"))","v":false},false,false,false,null,false,false,{"$f":"IF(calc1,IF(ISNUMBER(AW119),IF(COUNT(AW$1:AW119)=1,1,IF(COUNT(AW$1:AW119)<COUNT(AW:AW),IF(AH119=MAX(AH$1:AH118),2,3),4))))","v":false},false,false,false,false,false,false,false,false,false,false,false,false,false,false,null,null,null,65.636626996408665,0,24.660757176580248,{"$error":"#N/A"},770.29914529914527,810.67651858554973,746.87327406724262,3240.6418517254297,{"$error":"#N/A"}]
[null,null,null,null,null,null,null,null,null,null,null,null,null,null,null,false,false,false,false,false,false,false,false,false,false,false,false,{"$f":"IF(AND(calc1,calc2),IF($Z120>$B$44*($R120*24),deepest(INDEX(cdr,,6),INDEX(cdr,,1),\"=1\",INDEX(cdr,,2),\"\",$Z120,$B$45*$Z120,INDEX(cdr,,4),$S120,$T120),\"\"))","v":false},false,false,false,null,false,false,{"$f":"IF(calc1,IF(ISNUMBER(AW120),IF(COUNT(AW$1:AW120)=1,1,IF(COUNT(AW$1:AW120)<COUNT(AW:AW),IF(AH120=MAX(AH$1:AH119),2,3),4))))","v":false},false,false,false,false,false,false,false,false,false,false,false,false,false,false,null,null,"14:53   Δ26m",72.747904966594291,0,8.8841591451196198,{"$error":"#N/A"},820.8154506437769,829.96313085653969,861.13545502016575,2882.1151613584425,0]
["log_rows",9000,null,null,null,null,null,null,null,null,null,null,null,null,null,false,false,false,false,false,false,false,false,false,false,false,false,{"$f":"IF(AND(calc1,calc2),IF($Z121>$B$44*($R121*24),deepest(INDEX(cdr,,6),INDEX(cdr,,1),\"=1\",INDEX(cdr,,2),\"\",$Z121,$B$45*$Z121,INDEX(cdr,,4),$S121,$T121),\"\"))","v":false},false,false,false,null,false,false,{"$f":"IF(calc1,IF(ISNUMBER(AW121),IF(COUNT(AW$1:AW121)=1,1,IF(COUNT(AW$1:AW121)<COUNT(AW:AW),IF(AH121=MAX(AH$1:AH120),2,3),4))))","v":false},false,false,false,false,false,false,false,false,false,false,false,false,false,false,null,null,null,66.090039202972207,0,33.245074141512511,{"$error":"#N/A"},792.93478260869574,946.63031558215084,1015.4026034663243,3566.8949382561464,{"$error":"#N/A"}]
["log_index",2,null,null,null,null,null,null,null,null,null,null,null,null,null,false,false,false,false,false,false,false,false,false,false,false,false,{"$f":"IF(AND(calc1,calc2),IF($Z122>$B$44*($R122*24),deepest(INDEX(cdr,,6),INDEX(cdr,,1),\"=1\",INDEX(cdr,,2),\"\",$Z122,$B$45*$Z122,INDEX(cdr,,4),$S122,$T122),\"\"))","v":false},false,false,false,null,false,false,{"$f":"IF(calc1,IF(ISNUMBER(AW122),IF(COUNT(AW$1:AW122)=1,1,IF(COUNT(AW$1:AW122)<COUNT(AW:AW),IF(AH122=MAX(AH$1:AH121),2,3),4))))","v":false},false,false,false,false,false,false,false,false,false,false,false,false,false,false,null,null,"↓  2013 Oct 31 Thursday 15:55   Δ24m",75.349870694537827,0,32.597632157866911,{"$error":"#N/A"},800.16722408026749,1071.0015165256527,1411.2019982455661,3417.9648397983378,0]
[]
["tail_length",3.125E-2]
["tail_hcost",111]
["tail_wprefix",0.2]
["tail_fprefix",33]
["tail_attach","Book105.xlsm_131031'141010_131031'145510_131031'160139_CDR+374.xlsx"]
["tail_text","+374 costs 12.1CHF = 16.1CHF/h within last 45 minutes whereas +374 costs 3051CHF = 3.178CHF/h over full period of 960h0m12s"]